{"text_format":"1","workbook":"xlsx","n_sheets":12,"sheets":["ProjectInformation","PrintSheets","DE108_23A","DE108_26A","DE111_01","108_23A","108_26A","111_01","PrintSheetTemplate","Note1","BridgeBlock","Index"],"not_rendered":{"charts":0,"images":9,"macros":1,"external_links":0,"defined_names":8,"comments":0,"pivot_tables":0},"unopened":[],"bounds":{"document_bytes":16777216,"sheet_cells":100000,"rows_first":2000,"rows_last":500,"rows_between":2000,"halvings":0,"cell_chars":16384,"cell_head_chars":4096},"cells_cut":0,"cells_raw":0,"read":"whole","date_system":"1900"}

{"sheet":"ProjectInformation","index":0,"n_rows":15,"n_cols":2,"rows_kept":15,"cut":false,"hidden":false,"merged":[[0,0,0,1],[1,0,1,1],[9,0,9,1],[3,0,4,0]]}
["CPN DATA"]
["INFORMATION ADDED BY DESIGNER"]
["Section Engineer"]
["Design Team","Stanley Consultants Inc."]
[]
["County","DES MOINES"]
["Project Number","NHSX-061-2(62)--3H-29"]
["English or Metric","ENGLISH"]
["Revised"]
["Bridge Block"]
["File No."]
[]
["DE108_23A"]
["DE108_26A"]
["DE111_01"]

{"sheet":"PrintSheets","index":1,"n_rows":285,"n_cols":179,"rows_kept":285,"cut":false,"hidden":false,"merged":[[283,171,283,178],[284,1,284,178],[188,159,188,164],[188,165,188,170],[188,171,188,178],[189,1,189,178],[283,1,283,7],[283,8,283,14],[283,15,283,21],[283,22,283,30],[283,31,283,64],[283,65,283,100],[283,101,283,106],[283,107,283,118],[283,119,283,148],[283,149,283,158],[283,159,283,164],[283,165,283,170],[188,65,188,100],[188,101,188,106],[188,107,188,118],[188,119,188,148],[188,149,188,158],[188,1,188,7],[188,8,188,14],[188,15,188,21],[188,22,188,30],[188,31,188,64],[93,171,93,178],[94,1,94,178],[93,101,93,106],[93,107,93,118],[93,119,93,148],[93,149,93,158],[93,159,93,164],[93,165,93,170],[93,1,93,7],[93,8,93,14],[93,15,93,21],[93,22,93,30],[93,31,93,64],[93,65,93,100]]}
[" "]
[]
[]
[]
[]
[]
[]
[]
[]
[]
[]
[]
[]
[]
[]
[]
[]
[]
[]
[]
[]
[]
[]
[]
[]
[]
[]
[]
[]
[]
[]
[]
[]
[]
[]
[]
[]
[]
[]
[]
[]
[]
[]
[]
[]
[]
[]
[]
[]
[]
[]
[]
[]
[]
[]
[]
[]
[]
[]
[]
[]
[]
[]
[]
[]
[]
[]
[]
[]
[]
[]
[]
[]
[null,null,null,null,null,null,null,null,null,null,null,null,null,null,null,null,null,null,null,null,null,null,null,null,null,null,null,null,null,null,null,null,null,null,null,null,null,null,null,null,null,null,null,null,null,null,null,null,null,null,null,null,null,null,null,null,null,null,null,null,null,null,null,null,null,null,null,null,null,null,null,null,null,null,null,null,null,null,null,null,null,null,null,null,null,null,null,null,null,null,null,null,null,null,null,null,null,null,null,null,null,null,null,null,null,null,null,null,null,null,null,null,null,null,null,null,null,null,null,null,null,null,null,null,null,null,null,null,null,null,null,null,null,null,null,"","","","","","","","","","","","","","","","","","","","","","","","","","","","","","","","","","","","","","","","","","",""]
[]
[]
[]
[]
[]
[]
[]
[]
[]
[]
[]
[]
[]
[]
[]
[]
[]
[]
[null,"","","","","","","","","","","","","","","","","","","","","","","","","","","","","","","","","","","","","","","","","","","","","","","","","","","","","","","","","","","","","","","","","","","","","","","","","","","","","","","","","","","","","","","","","","","","","","","","","","","","","","","","","","","","","","","","","","","","","","","","","","","","","","","","","","","","","","","","","","","","","","","","","","","","","","","",null,"","","","","","","","","","","","","","","","","","","","","","","","","",""]
[null,"FILE NO.",null,null,null,null,null,null,{"$f":"IF(ProjectInformation!$B$11<>\"\",ProjectInformation!$B$11,\"\")","v":""},null,null,null,null,null,null,{"$f":"UPPER(ProjectInformation!B8)","v":"ENGLISH"},null,null,null,null,null,null,"DESIGN TEAM",null,null,null,null,null,null,null,null,{"$f":"ProjectInformation!B4","v":"Stanley Consultants Inc."},null,null,null,null,null,null,null,null,null,null,null,null,null,null,null,null,null,null,null,null,null,null,null,null,null,null,null,null,null,null,null,null,null,{"$f":"IF(ProjectInformation!$B$6<>\"\",ProjectInformation!$B$6,\"\")","v":"DES MOINES"},null,null,null,null,null,null,null,null,null,null,null,null,null,null,null,null,null,null,null,null,null,null,null,null,null,null,null,null,null,null,null,null,null,null,null,"COUNTY",null,null,null,null,null,"PROJECT NUMBER",null,null,null,null,null,null,null,null,null,null,null,{"$f":"IF(ProjectInformation!$B$7<>\"\",ProjectInformation!$B$7,\"\")","v":"NHSX-061-2(62)--3H-29"},null,null,null,null,null,null,null,null,null,null,null,null,null,null,null,null,null,null,null,null,null,null,null,null,null,null,null,null,null,"SHEET NUMBER",null,null,null,null,null,null,null,null,null,"J.1",null,null,null,null,null,{"$f":"IF(FP94<>\"\",\"REVISED\",\"\")","v":""},null,null,null,null,null,{"$f":"IF(ProjectInformation!$B$9<>\"\",ProjectInformation!$B$9,\"\")","v":""}]
["","12/10/2014     5:09:51 PM     9012     c:\\projects\\datasource-1\\common\\d0250879\\29061062j01.xlsm"]
[" "]
[]
[]
[]
[]
[]
[]
[]
[]
[]
[]
[]
[]
[]
[]
[]
[]
[]
[]
[]
[]
[]
[]
[]
[]
[]
[]
[]
[]
[]
[]
[]
[]
[]
[]
[]
[]
[]
[]
[]
[]
[]
[]
[]
[]
[]
[]
[]
[]
[]
[]
[]
[]
[]
[]
[]
[]
[]
[]
[]
[]
[]
[]
[]
[]
[]
[]
[]
[]
[]
[]
[]
[]
[]
[]
[]
[]
[]
[]
[]
[]
[]
[]
[]
[]
[]
[]
[]
[]
[]
[]
[]
[null,"","","","","","","","","","","","","","","","","","","","","","","","","","","","","","","","","","","","","","","","","","","","","","","","","","","","","","","","","","","","","","","","","","","","","","","","","","","","","","","","","","","","","","","","","","","","","","","","","","","","","","","","","","","","","","","","","","","","","","","","","","","","","","","","","","","","","","","","","","","","","","","","","","","","","","","",null,"","","","","","","","","","","","","","","","","","","","","","","","","",""]
[null,"FILE NO.",null,null,null,null,null,null,{"$f":"IF(ProjectInformation!$B$11<>\"\",ProjectInformation!$B$11,\"\")","v":""},null,null,null,null,null,null,{"$f":"UPPER(ProjectInformation!B8)","v":"ENGLISH"},null,null,null,null,null,null,"DESIGN TEAM",null,null,null,null,null,null,null,null,{"$f":"ProjectInformation!B4","v":"Stanley Consultants Inc."},null,null,null,null,null,null,null,null,null,null,null,null,null,null,null,null,null,null,null,null,null,null,null,null,null,null,null,null,null,null,null,null,null,{"$f":"IF(ProjectInformation!$B$6<>\"\",ProjectInformation!$B$6,\"\")","v":"DES MOINES"},null,null,null,null,null,null,null,null,null,null,null,null,null,null,null,null,null,null,null,null,null,null,null,null,null,null,null,null,null,null,null,null,null,null,null,"COUNTY",null,null,null,null,null,"PROJECT NUMBER",null,null,null,null,null,null,null,null,null,null,null,{"$f":"IF(ProjectInformation!$B$7<>\"\",ProjectInformation!$B$7,\"\")","v":"NHSX-061-2(62)--3H-29"},null,null,null,null,null,null,null,null,null,null,null,null,null,null,null,null,null,null,null,null,null,null,null,null,null,null,null,null,null,"SHEET NUMBER",null,null,null,null,null,null,null,null,null,{"$f":"IF($FD$94<>\"\",\"J.\"& MID(OFFSET($FD$189,-95,0),3,LEN(OFFSET($FD$189,-95,0))-2)+1,\"\")","v":"J.2"},null,null,null,null,null,{"$f":"IF(FP189<>\"\",\"REVISED\",\"\")","v":""},null,null,null,null,null,{"$f":"IF(ProjectInformation!$B$9<>\"\",ProjectInformation!$B$9,\"\")","v":""}]
["","12/10/2014     5:08:54 PM     9012     c:\\projects\\datasource-1\\common\\d0250879\\29061062j01.xlsm"]
[" "]
[]
[]
[]
[]
[]
[]
[]
[]
[]
[]
[]
[]
[]
[]
[]
[]
[]
[]
[]
[]
[]
[]
[]
[]
[]
[]
[]
[]
[]
[]
[]
[]
[]
[]
[]
[]
[]
[]
[]
[]
[]
[]
[]
[]
[]
[]
[]
[]
[]
[]
[]
[]
[]
[]
[]
[]
[]
[]
[]
[]
[]
[]
[]
[]
[]
[]
[]
[]
[]
[]
[]
[]
[]
[]
[]
[]
[]
[]
[]
[]
[]
[]
[]
[]
[]
[]
[]
[]
[]
[]
[]
[null,"","","","","","","","","","","","","","","","","","","","","","","","","","","","","","","","","","","","","","","","","","","","","","","","","","","","","","","","","","","","","","","","","","","","","","","","","","","","","","","","","","","","","","","","","","","","","","","","","","","","","","","","","","","","","","","","","","","","","","","","","","","","","","","","","","","","","","","","","","","","","","","","","","","","","","","",null,"","","","","","","","","","","","","","","","","","","","","","","","","",""]
[null,"FILE NO.",null,null,null,null,null,null,{"$f":"IF(ProjectInformation!$B$11<>\"\",ProjectInformation!$B$11,\"\")","v":""},null,null,null,null,null,null,{"$f":"UPPER(ProjectInformation!B8)","v":"ENGLISH"},null,null,null,null,null,null,"DESIGN TEAM",null,null,null,null,null,null,null,null,{"$f":"ProjectInformation!B4","v":"Stanley Consultants Inc."},null,null,null,null,null,null,null,null,null,null,null,null,null,null,null,null,null,null,null,null,null,null,null,null,null,null,null,null,null,null,null,null,null,{"$f":"IF(ProjectInformation!$B$6<>\"\",ProjectInformation!$B$6,\"\")","v":"DES MOINES"},null,null,null,null,null,null,null,null,null,null,null,null,null,null,null,null,null,null,null,null,null,null,null,null,null,null,null,null,null,null,null,null,null,null,null,"COUNTY",null,null,null,null,null,"PROJECT NUMBER",null,null,null,null,null,null,null,null,null,null,null,{"$f":"IF(ProjectInformation!$B$7<>\"\",ProjectInformation!$B$7,\"\")","v":"NHSX-061-2(62)--3H-29"},null,null,null,null,null,null,null,null,null,null,null,null,null,null,null,null,null,null,null,null,null,null,null,null,null,null,null,null,null,"SHEET NUMBER",null,null,null,null,null,null,null,null,null,{"$f":"IF($FD$189<>\"\",\"J.\"& MID(OFFSET($FD$284,-95,0),3,LEN(OFFSET($FD$284,-95,0))-2)+1,\"\")","v":"J.3"},null,null,null,null,null,{"$f":"IF(FP284<>\"\",\"REVISED\",\"\")","v":""},null,null,null,null,null,{"$f":"IF(ProjectInformation!$B$9<>\"\",ProjectInformation!$B$9,\"\")","v":""}]
["","12/5/2014     1:32:46 PM     9012     c:\\projects\\datasource-1\\common\\d0250879\\29061062j01.xlsm"]

{"sheet":"DE108_23A","index":2,"n_rows":64,"n_cols":5,"rows_kept":64,"cut":false,"hidden":false,"merged":[[14,2,15,2],[16,4,17,4]]}
["TabTitle",{"$f":"C15","v":"TRAFFIC CONTROL PLAN"}]
["Number of Tab Columns",1]
["DE Starter Row Number",18]
["TabSheet Starter Row Number",5]
["TabSheet Header Row Count",4]
["Top Header Cell","E15"]
["Bottom Header Cell","E18"]
["DESheet Row Count",47]
["Fixed Empty Rows",10]
["Usable Empty Rows",0]
["Total Rows Placed",57,"xlLeft(1)",null,{"$f":"IF(C11<>\"\",C11,\"\")","v":"xlLeft(1)"}]
["Total Rows Needed",{"$f":"SUM(B8:B10)","v":57},"General",null,{"$f":"IF(C12<>\"\",C12,\"\")","v":"General"}]
["Last Tab DE Starter Row",18,{"$f":"CELL(\"width\",C13)","v":159},null,{"$f":"CELL(\"width\",E13)","v":0}]
["Last Tab Tabsheet Starter Row",5,"A",null,"a"]
["Last Copy Starter Row",1,"TRAFFIC CONTROL PLAN",null,"108-23A"]
["Tab Loop Number",2,null,null,{"$f":"B17","v":"2008-08-01"}]
["Revision Date","2008-08-01",{"$f":"\"This Data Entry Sheet fills Tab \"&E15&\" effective \"&TEXT(B17,\"mm-dd-yy\")","v":"This Data Entry Sheet fills Tab 108-23A effective 08-01-08"},null,{"$f":"C15","v":"TRAFFIC CONTROL PLAN"}]
["Tabulation Width",2,"PROJECT (62)  Grade proposed SB lanes of US 61, construct the culvert under Plank Rd. , construct the culvert under Stoney Hollow Rd.,"]
["Horizontal Grid Lines","No","              and construct 1/2 of the culvert under proposed NB US-61 north of 210th St."]
[null,null,"Existing US 61"]
[null,null,"        - Maintain traffic on US 61 at all times as noted in the staging notes."]
[null,null,"        - Maintain traffic to all farmstead and field entrances as noted in the staging plans at all times."]
[]
[null,null,"Sideroads: Timberidge Dr., Fawn Rd., Mark Twain Dr. Memorial Park Rd., Lakeside Dr., Plank Rd., Flint Bottom Rd., Upper Flint Rd.,"]
[null,null,"          Tanner Ln. left & right, 130th St., Pfeiff Rd., 124th St., Iowa City Rd. left & right, "]
[null,null,"          150th St. left & right, 160th St. left & right, 170th St., Stony Hollow Rd., 180th St., Dodgeville Rd., 182nd St., 190th St.,"]
[null,null,"          Sperry Rd., 198th St., and Pleasant Grove Rd."]
[null,null,"        - Maintain traffic on sideroads as noted in the staging plans at all times."]
[null,null,"        - Maintain traffic on Sunnyside Dr. at all times as noted in the J-sheets."]
[]
[]
[null,null,"PROJECT (70)  Construct proposed SB bridge on US 61 over Flint Creek."]
[null,null,"        - Refer to the (62) grading project for all traffic control."]
[]
[]
[null,null,"PROJECT (68)  Pave proposed SB lanes of US 61 and construct temporary median crossovers and temporary detour pavements."]
[null,null,"Existing US 61"]
[null,null,"        - Maintain traffic on existing US 61 at all times as noted in the staging notes."]
[null,null,"        - Maintain traffic to all farmstead and field entrances as noted in the staging plans at all times."]
[]
[null,null,"Sideroads: Timberidge Dr., Fawn Rd., Mark Twain Dr. Memorial Park Rd., Lakeside Dr., Plank Rd., Flint Bottom Rd., Upper Flint Rd.,"]
[null,null,"          Tanner Ln. left & right, 130th St., Pfeiff Rd., Iowa City Rd. left & right, 150th St.  left & right,"]
[null,null,"          160th St. left & right, 170th St., Stony Hollow Rd.,180th St., Dodgeville Rd., 182nd St., 190th St., Sperry Rd., 198th St., "]
[null,null,"          and Pleasant Grove Rd."]
[null,null,"        - Maintain traffic on sideroads as noted in the staging plans at all times."]
[null,null,"        - Maintain traffic on Sunnyside Dr. at all times as noted in the J-sheets."]
[]
[]
[null,null,"PROJECT (69)  Grade and pave proposed NB lanes of US 61"]
[null,null,"Existing US 61"]
[null,null,"        - Maintain traffic on US 61 as noted in the staging plan at all times, except as noted below:"]
[null,null,"            i.  At least one lane of traffic is to remain open during construction of the left and right turn lanes."]
[null,null,"        - Maintain traffic to all farmstead and field entrances as noted in the staging plans at all times."]
[]
[null,null,"Sideroads: Timberidge Dr., Fawn Rd., Mark Twain Dr. Memorial Park Rd., Lakeside Dr., Plank Rd., Flint Bottom Rd., Upper Flint Rd.,"]
[null,null,"          Tanner Ln. left & right, 130th St., Pfeiff Rd., Iowa City Rd. left & right, 150th St.  left & right,"]
[null,null,"          160th St. left & right, 170th St., Stony Hollow Rd.,180th St., Dodgeville Rd., 182nd St., 190th St., Sperry Rd., 198th St., "]
[null,null,"          and Pleasant Grove Rd."]
[null,null,"        - Maintain traffic on existing sideroads as noted in the staging plans at all times."]
[null,null,"        - Maintain traffic on Sunnyside Dr. at all times as noted in the J-sheets."]
[]
[]
[null,null,"PROJECT (71)  Construct proposed NB bridge on US 61 over Flint Creek."]
[null,null,"        - Refer to the (69) grade/pave project for all traffic control."]

{"sheet":"DE108_26A","index":3,"n_rows":175,"n_cols":5,"rows_kept":175,"cut":false,"hidden":false,"merged":[[14,2,15,2],[16,4,17,4]]}
["TabTitle",{"$f":"C15","v":"STAGING NOTES"}]
["Number of Tab Columns",1]
["DE Starter Row Number",18]
["TabSheet Starter Row Number",5]
["TabSheet Header Row Count",4]
["Top Header Cell","E15"]
["Bottom Header Cell","E18"]
["DESheet Row Count",158]
["Fixed Empty Rows",10]
["Usable Empty Rows",0]
["Total Rows Placed",168,"xlLeft(1)",null,{"$f":"C11","v":"xlLeft(1)"}]
["Total Rows Needed",{"$f":"SUM(B8:B10)","v":168},"General",null,{"$f":"C12","v":"General"}]
["Last Tab DE Starter Row",104,{"$f":"CELL(\"width\",C13)","v":159},null,{"$f":"CELL(\"width\",E13)","v":0}]
["Last Tab TabSheet Starter Row",95,"A",null,{"$f":"LOWER(C14)","v":"a"}]
["Last Copy Starter Row",91,"STAGING NOTES",null,"108-26A"]
["Tab Loop Number",3,null,null,{"$f":"B17","v":"2008-08-01"}]
["Revision Date","2008-08-01",{"$f":"\"This Data Entry Sheet fills Tab \"&E15&\" effective \"&TEXT(B17,\"mm-dd-yy\")","v":"This Data Entry Sheet fills Tab 108-26A effective 08-01-08"},null,{"$f":"C15","v":"STAGING NOTES"}]
["Tabulation Width",2,"PROJECT (62)  Grade proposed SB/NB lanes of US 61, construct the sideroad culvert under proposed Plank Rd., construct the sideroad"]
["Horizontal Grid Lines","No","culvert under Stoney Hollow Rd., and construct 1/2 of the culvert under proposed NB US-61 north of 210th St."]
[null,null,"It is not the intent of the sequence of construction to confine the Contractor's activities to the area of suggested stages alone."]
[null,null,"It is understood that some of the various steps, though listed in numerical order, may occur simultaneously. Therefore, the Contractor"]
[null,null,"may conduct several operations concurrently on the project, provided that the existing traffic is maintained and that these operations"]
[null,null,"do not conflict with the staging indicated here in."]
[]
[null,null,"It is recognized that as various activities related to the construction progress, certain situations may arise which will preclude"]
[null,null,"adhering to the original construction sequence or, which in the opinion of the Contractor, would readily adhere itself to a more"]
[null,null,"efficient staging operation. Should this occur, and the Contractor desire to deviate from the original plan, they shall submit an"]
[null,null,"alternate plan for approval by the Engineer."]
[]
[null,null,"   Traffic:"]
[null,null,"     -  Maintain traffic on both lanes of existing US 61 at all times, except as noted below."]
[null,null,"             1.  Maintain at least 1 lane of traffic on existing US 61 when grading and paving temporary detour 3 located on "]
[null,null,"                 existing US 61 near the intersection of 190th St./Sperry Rd."]
[null,null,"    -  Maintain traffic on the following side roads at all times: Timberidge Dr., Fawn Rd., Mark Twain Dr., Memorial Park Rd., "]
[null,null,"       Lakeside Dr., Flint Bottom Rd., Upper Flint Rd., Tanner Lane left & right., 130th St., 124th Ave., 150th St. right, "]
[null,null,"       150th St. E., 160th St. right, 170th St. left., Dodgeville Rd., Sperry Rd., 198th St., and Pleasant Grove Rd."]
[null,null,"    -  190th St. will be closed for a short time to grade the sideroad and reopened upon completion."]
[null,null,"    -  All homestead and field entrances are to remain open to traffic at all times except during reconstruction."]
[null,null,"   Construction:"]
[null,null,"     -  Grade proposed SB US 61 from just north of Memorial Park Rd. to and including the south Flint Creek bridge berm."]
[null,null,"     -  Construct the Twin RCB located under proposed Plank Rd."]
[null,null,"     -  Remove existing Plank Rd. and grade proposed Plank Rd."]
[null,null,"     -  Grade proposed SB US 61 from and including the north Flint Creek bridge berm to just north of 160th St."]
[null,null,"     -  Grade proposed NB US 61 from just south of Upper Flint Rd. to just north of Tanner Ln."]
[null,null,"     -  Grade proposed NB US 61 from just north of Pfeiff Rd. to just north of 160th St."]
[null,null,"     -  Grade and pave SB temporary detour pavement 3 located at the intersection US 61 with 190th St./Sperry Rd. "]
[null,null,"     -  Grade proposed NB US 61 from just north of 160th St. to just south of 210th St."]
[null,null,"     -  Grade proposed NB US 61 from just north of 210th St. to just south of Hawk Rd."]
[null,null,"     -  Grade, surface with granular material, and reopen to traffic immediately the following sideroads."]
[null,null,"            1.  Proposed Pfeiff Rd., Iowa City Rd. left, 150th St. left, 160th St. left, Stoney Hollow Rd., "]
[null,null,"                180th St. right, 182nd St., and 190th St."]
[null,null,"     -  Grade/Surface proposed the intersection of US 61 with 190th St./Sperry Rd. "]
[null,null,"     -  Construct 1/2 of the proposed RCB culvert under proposed NB lanes of US 61 just north of 210th St. "]
[null,null,"     -  Construct proposed RCB under Plank Rd."]
[null,null,"     -  Construct proposed RCB under Stoney Hollow Rd."]
[]
[null,null,"PROJECT (70)  Construct proposed SB bridge over Flint Creek."]
[]
[null,null,"   Traffic:"]
[null,null,"     -  Refer to the (62) grading project for all traffic control."]
[null,null,"   Construction:"]
[null,null,"     -  Construct proposed SB US 61 bridge over Flint Creek."]
[]
[null,null,"PROJECT (68)  Pave proposed SB/NB lanes of US 61 and construct temporary median crossovers and temporary detour pavements."]
[]
[null,null,"   Traffic:"]
[null,null,"    -  Maintain traffic on existing US 61 at all times from Sunnyside Drive through temporary detour 3 to the EOP."]
[null,null,"    -  Maintain traffic on the following side roads at all times: Timberidge Dr., Fawn Rd., Mark Twain Dr., Memorial Park Rd., "]
[null,null,"       Lakeside Dr., 130th St. right, 124th Ave., Iowa City Rd. right, 150th St. left & right, 150th St. E., "]
[null,null,"       160th St. left & right, 170th St., Stoney Hollow Rd., Dodgeville Rd., 180th St., 182nd St., 190th St., and Pleasant Grove Rd."]
[null,null,"    -  All homestead and field entrances are to remain open to traffic at all times except during reconstruction."]
[null,null,"   Construction:"]
[null,null,"     -  Pave proposed SB US 61 from just north of Memorial Park Rd. to the south Flint Creek bridge berm."]
[null,null,"     -  Grade and Pave Flint Bottom Rd., Upper Flint Rd., and Tanner Lane right."]
[null,null,"     -  Pave proposed Plank Rd."]
[null,null,"     -  Pave proposed SB US 61 from the just north of the proposed SB Flint Creek bridge to just north of 160th St."]
[null,null,"     -  Pave proposed NB US 61 from just south of Upper Flint Rd. to just north of Tanner Ln."]
[null,null,"     -  Pave proposed NB US 61 from just north of Pfeiff Rd. to just north of 160th St."]
[null,null,"     -  Pave proposed NB US 61 from just north of 160th St. to just south of 210th St."]
[null,null,"     -  Grade, surface with granular material, and reopen to traffic immediately the following sideroads."]
[null,null,"            1.  Proposed Tanner Lane left, Pfeiff Rd., Iowa City Rd. left, 150th St. left, 160th St. left, Stoney Hollow Rd., "]
[null,null,"                180th St. right, 182nd St., and 190th St."]
[null,null,"     -  Grade/Surface proposed homestead and field entrances as needed."]
[null,null,"     -  Remove curb and gutter and construct median crossover 1."]
[null,null,"     -  Grade/Pave median crossover 2."]
[null,null,"     -  Grade/Pave temporary detour 1."]
[null,null,"     -  Grade/Pave temporary detour 2."]
[null,null,"     -  Grade/Pave temporary detour 5."]
[]
[null,null,"PROJECT (69)  Grade and pave proposed NB/SB lanes of US 61"]
[]
[null,null,"Stage 1"]
[null,null,"   Traffic:"]
[null,null,"     -  Maintain traffic on existing NB and SB US 61 between Sunnyside Dr. and the median crossover 1."]
[null,null,"     -  Maintain 2 lane 2 way operations on existing US 61 between median crossover 1 and temporary detour 2."]
[null,null,"     -  Maintain SB traffic on existing SB US 61 between temporary detour 2 and temporary detour 5."]
[null,null,"     -  Maintain NB traffic on proposed NB US 61 between temporary detour 2 and temporary detour 5."]
[null,null,"     -  Maintain traffic on all side roads at all times, except as follows: Close Memorial Park Rd. to traffic."]
[null,null,"     -  All homestead and field entrances are to remain open to traffic at all times except during reconstruction."]
[null,null,"   Construction:"]
[null,null,"     -  Remove existing US 61 and grade/pave proposed SB lanes from south of Mark Twain Dr. to just north of Memorial Park Rd."]
[null,null,"     -  Grade/Pave Memorial Park Rd. west of the new SB lanes of US 61."]
[null,null,"     -  Grade/Surface proposed homestead and field entrances as needed."]
[]
[null,null,"Stage 2"]
[null,null,"   Traffic:"]
[null,null,"     -  Maintain traffic on existing NB and SB US 61 between Sunnyside Dr. and median crossover 1."]
[null,null,"     -  Maintain 2 lane 2 way operations on proposed SB US 61 between median crossover 1 and median crossover 2."]
[null,null,"     -  Maintain 2 lane 2 way operations on proposed NB US 61 between median crossover 2 and temporary detour 1."]
[null,null,"     -  Maintain 2 lane 2 way operations on existing US 61 between temporary detour 1 and temporary detour 2."]
[null,null,"     -  Maintain 2 lane 2 way operations on proposed NB US 61 between temporary detour 2 and temporary detour 5."]
[null,null,"     -  Maintain traffic on the following side roads at all times: Timberidge Dr., Fawn Rd., Memorial Park Rd., Plank Rd., "]
[null,null,"        Flint Bottom Rd., Upper Flint Rd., Tanner Rd. E. & W., Pfeiff Rd., Iowa City Rd. left & right, 150th St. left & right, "]
[null,null,"        160th St. left, Stoney Hollow Rd., 180th St. E.,182nd St., 190th St., Sperry Rd., and 198th St."]
[null,null,"     -  All homestead and field entrances are to remain open to traffic at all times except during reconstruction."]
[null,null,"   Construction:"]
[null,null,"     -  Remove existing NB US 61 pavement from just south of Mark Twain Dr. to the Flint Creek Bridge."]
[null,null,"     -  Remove existing US 61 pavement from the Flint Creek Bridge to Upper Flint Rd."]
[null,null,"     -  Remove existing US 61 from just north of Tanner Rd. to just north of new 124th Ave."]
[null,null,"     -  Remove existing US 61 from just north of 160th St. to just south of 190th St."]
[null,null,"     -  Remove existing US 61 from just north of 190th St. to just north of Pleasant Grove Rd."]
[null,null,"     -  Remove temporary detour pavement 3 and regrade and pave that portion of SB US 61."]
[null,null,"     -  Grade/Pave proposed NB lanes of US 61 from just south of Mark Twain Dr. to the Flint Creek Bridge."]
[null,null,"     -  Grade/Pave proposed NB lanes of US 61 from the Flint Creek Bridge to just south of Upper Flint Rd. "]
[null,null,"     -  Grade/Pave proposed NB lanes of US 61 from just north of Tanner Rd. to just north of new 124th Ave."]
[null,null,"     -  Grade/Pave proposed SB lanes of US 61 from just north of 160th St. to just north of Pleasant Grove Rd."]
[null,null,"     -  Grade/Pave the following proposed paved sideroads:"]
[null,null,"           1.  Lakeside Dr., Dodgeville Rd., and Pleasant Grove Rd."]
[null,null,"     -  Grade/Pave proposed temporary Detour 4."]
[null,null,"     -  Grade/Pave proposed bike path."]
[null,null,"     -  Grade/Pave proposed re-directed US 61 at Iowa City Rd.--Rt."]
[null,null,"     -  Grade/Pave proposed re-directed US 61 at 150th St.--Rt."]
[null,null,"     -  Grade/Surface the following proposed gravel roads:"]
[null,null,"           1.  Mark Twain Rd., 130th St. right, 124th Ave. right, 160th St. right, 170th St. left, and 190th St. "]
[null,null,"     -  Grade/Surface proposed 160th St. right."]
[null,null,"     -  Grade/Surface proposed homestead and field entrances as needed."]
[]
[null,null,"Stage 3"]
[null,null,"   Traffic:"]
[null,null,"     -  Maintain at least one lane of traffic on existing NB and SB US 61 between Sunnyside Dr. and median crossover 1. "]
[null,null,"     -  Maintain NB and SB US 61 traffic on the respective NB and SB lanes between median crossover 1 and median crossover 2,"]
[null,null,"        except as noted below."]
[null,null,"            1.  During removal of median crossover 1 and reconstruction of the median traffic "]
[null,null,"                shall be shifted to the outside lanes of proposed NB and SB US 61."]
[null,null,"     -  Maintain 2 lane 2 way operations on the SB lanes US 61 between median crossover 2 and temporary detour 4, except as noted below:"]
[null,null,"            1.  During removal of temporary detours 1 and 2 traffic shall be shifted to the outside lanes of proposed NB and SB US 61."]
[null,null,"     -  Maintain 2 lane 2 way operations on the NB lanes US 61 between temporary detour 4 and the EOP."]
[null,null,"     -  Maintain traffic on all side roads, except as noted below."]
[null,null,"            1.  Iowa City Rd. right and 150th St. right."]
[null,null,"     -  All farmstead and field entrances are to remain open to traffic at all times except during reconstruction."]
[null,null,"   Construction:"]
[null,null,"     -  Remove temporary detour 2 and grade/pave the small section of NB US 61 just north of 160th St."]
[null,null,"     -  Remove median crossover 1 pavement and reconstruct raised median."]
[null,null,"     -  Remove temporary detour 1 pavement."]
[null,null,"     -  Grade/Surface proposed homestead and field entrances as needed."]
[]
[null,null,"Stage 4."]
[null,null,"   Traffic:"]
[null,null,"     -  Open proposed US 61 to traffic from Sunnyside Dr. to the EOP, except as noted below."]
[null,null,"           i. Close the inside lane of new NB and SB US 61 to traffic when paving left turn lanes."]
[null,null,"          ii. Close the outside lane of new NB and SB US 61 to traffic when paving right turn lanes."]
[null,null,"     -  Maintain 2 lane 2 way traffic on proposed US 61 between temporary detour 4 and 5, except during left and right lane construction."]
[null,null,"     -  Open all side roads to traffic."]
[null,null,"     -  Open all farmstead and field entrances to traffic."]
[null,null,"   Construction:"]
[null,null,"     -  Grade/Pave all NB and SB left and right turn lanes."]
[null,null,"     -  Clean up of all debris and place interim erosion control/seeding/fertilizing on entire project."]
[]
[]
[null,null,"PROJECT (71)  Construct proposed NB bridge over Flint Creek."]
[]
[null,null,"   Traffic:"]
[null,null,"     -  Refer to the (69) grade/pave project for all traffic control."]
[null,null,"   Construction:"]
[null,null,"     -  Construct proposed NB US 61 bridge over Flint Creek."]

{"sheet":"DE111_01","index":4,"n_rows":27,"n_cols":7,"rows_kept":27,"cut":false,"hidden":false,"merged":[[24,6,25,6],[14,2,16,3],[14,5,14,6],[15,5,15,6],[16,5,18,6],[17,2,21,3],[19,5,23,6],[22,2,22,3],[23,2,24,2],[23,3,24,3],[24,5,25,5]]}
["TabTitle",{"$f":"C15","v":"COORDINATED OPERATIONS"}]
["Number of Tab Columns",2]
["DE Starter Row Number",26]
["TabSheet Starter Row Number",13]
["TabSheet Header Row Count",12]
["Top Header Cell","F15"]
["Bottom Header Cell","G26"]
["DESheet Row Count",2]
["Fixed Empty Rows",2]
["Usable Empty Rows",0]
["Total Rows Placed",4,"xlLeft(1)","xlLeft(1)",null,{"$f":"C11","v":"xlLeft(1)"},{"$f":"D11","v":"xlLeft(1)"}]
["Total Rows Needed",{"$f":"SUM(B8:B10)","v":4},"General","General",null,{"$f":"C12","v":"General"},{"$f":"D12","v":"General"}]
["Last Tab DE Starter Row",26,{"$f":"CELL(\"width\",C13)","v":35},{"$f":"CELL(\"width\",D13)","v":37},null,{"$f":"CELL(\"width\",F13)","v":0},{"$f":"CELL(\"width\",G13)","v":0}]
["Last Tab Tabsheet Starter Row",13,"A","B",null,{"$f":"LOWER(C14)","v":"a"},{"$f":"LOWER(D14)","v":"b"}]
["Last Copy Starter Row",1,"COORDINATED OPERATIONS",null,null,"111-01"]
["Tab Loop Number",2,null,null,null,{"$f":"B17","v":"2012-04-17"}]
["Revision Date","2012-04-17",null,null,null,{"$f":"C15","v":"COORDINATED OPERATIONS"}]
["Tabulation Width",1,"Other work in progress during the same period of time will include the construction of the projects listed. Coordinate operations with those of other contractors working within the same area. "]
["Horizontal Grid Lines","Yes"]
[null,null,null,null,null,{"$f":"C18","v":"Other work in progress during the same period of time will include the construction of the projects listed. Coordinate operations with those of other contractors working within the same area. "}]
[]
[]
[null,null,{"$f":"\"This Data Entry Sheet fills Tab \"&F15&\" effective \"&TEXT(B17,\"mm-dd-yy\")","v":"This Data Entry Sheet fills Tab 111-01 effective 04-17-12"}]
[null,null,"Project","Type of Work"]
[null,null,null,null,null,{"$f":"C24","v":"Project"},{"$f":"D24","v":"Type of Work"}]
[]
[null,null,"None Provided"]

{"sheet":"108_23A","index":5,"n_rows":61,"n_cols":1,"rows_kept":61,"cut":false,"hidden":false,"merged":[[2,0,3,0]]}
["108-23A"]
["2008-08-01"]
["TRAFFIC CONTROL PLAN"]
[]
[{"$f":"IF(OFFSET(DE108_23A!$C$18,ROWS($C$18:C18)-1,COLUMNS($C$18:C18)-1)<>\"\",OFFSET(DE108_23A!$C$18,ROWS($C$18:C18)-1,COLUMNS($C$18:C18)-1),\"\")","v":"PROJECT (62)  Grade proposed SB lanes of US 61, construct the culvert under Plank Rd. , construct the culvert under Stoney Hollow Rd.,"}]
[{"$f":"IF(OFFSET(DE108_23A!$C$18,ROWS($C$18:C19)-1,COLUMNS($C$18:C19)-1)<>\"\",OFFSET(DE108_23A!$C$18,ROWS($C$18:C19)-1,COLUMNS($C$18:C19)-1),\"\")","v":"              and construct 1/2 of the culvert under proposed NB US-61 north of 210th St."}]
[{"$f":"IF(OFFSET(DE108_23A!$C$18,ROWS($C$18:C20)-1,COLUMNS($C$18:C20)-1)<>\"\",OFFSET(DE108_23A!$C$18,ROWS($C$18:C20)-1,COLUMNS($C$18:C20)-1),\"\")","v":"Existing US 61"}]
[{"$f":"IF(OFFSET(DE108_23A!$C$18,ROWS($C$18:C21)-1,COLUMNS($C$18:C21)-1)<>\"\",OFFSET(DE108_23A!$C$18,ROWS($C$18:C21)-1,COLUMNS($C$18:C21)-1),\"\")","v":"        - Maintain traffic on US 61 at all times as noted in the staging notes."}]
[{"$f":"IF(OFFSET(DE108_23A!$C$18,ROWS($C$18:C22)-1,COLUMNS($C$18:C22)-1)<>\"\",OFFSET(DE108_23A!$C$18,ROWS($C$18:C22)-1,COLUMNS($C$18:C22)-1),\"\")","v":"        - Maintain traffic to all farmstead and field entrances as noted in the staging plans at all times."}]
[{"$f":"IF(OFFSET(DE108_23A!$C$18,ROWS($C$18:C23)-1,COLUMNS($C$18:C23)-1)<>\"\",OFFSET(DE108_23A!$C$18,ROWS($C$18:C23)-1,COLUMNS($C$18:C23)-1),\"\")","v":""}]
[{"$f":"IF(OFFSET(DE108_23A!$C$18,ROWS($C$18:C24)-1,COLUMNS($C$18:C24)-1)<>\"\",OFFSET(DE108_23A!$C$18,ROWS($C$18:C24)-1,COLUMNS($C$18:C24)-1),\"\")","v":"Sideroads: Timberidge Dr., Fawn Rd., Mark Twain Dr. Memorial Park Rd., Lakeside Dr., Plank Rd., Flint Bottom Rd., Upper Flint Rd.,"}]
[{"$f":"IF(OFFSET(DE108_23A!$C$18,ROWS($C$18:C25)-1,COLUMNS($C$18:C25)-1)<>\"\",OFFSET(DE108_23A!$C$18,ROWS($C$18:C25)-1,COLUMNS($C$18:C25)-1),\"\")","v":"          Tanner Ln. left & right, 130th St., Pfeiff Rd., 124th St., Iowa City Rd. left & right, "}]
[{"$f":"IF(OFFSET(DE108_23A!$C$18,ROWS($C$18:C26)-1,COLUMNS($C$18:C26)-1)<>\"\",OFFSET(DE108_23A!$C$18,ROWS($C$18:C26)-1,COLUMNS($C$18:C26)-1),\"\")","v":"          150th St. left & right, 160th St. left & right, 170th St., Stony Hollow Rd., 180th St., Dodgeville Rd., 182nd St., 190th St.,"}]
[{"$f":"IF(OFFSET(DE108_23A!$C$18,ROWS($C$18:C27)-1,COLUMNS($C$18:C27)-1)<>\"\",OFFSET(DE108_23A!$C$18,ROWS($C$18:C27)-1,COLUMNS($C$18:C27)-1),\"\")","v":"          Sperry Rd., 198th St., and Pleasant Grove Rd."}]
[{"$f":"IF(OFFSET(DE108_23A!$C$18,ROWS($C$18:C28)-1,COLUMNS($C$18:C28)-1)<>\"\",OFFSET(DE108_23A!$C$18,ROWS($C$18:C28)-1,COLUMNS($C$18:C28)-1),\"\")","v":"        - Maintain traffic on sideroads as noted in the staging plans at all times."}]
[{"$f":"IF(OFFSET(DE108_23A!$C$18,ROWS($C$18:C29)-1,COLUMNS($C$18:C29)-1)<>\"\",OFFSET(DE108_23A!$C$18,ROWS($C$18:C29)-1,COLUMNS($C$18:C29)-1),\"\")","v":"        - Maintain traffic on Sunnyside Dr. at all times as noted in the J-sheets."}]
[{"$f":"IF(OFFSET(DE108_23A!$C$18,ROWS($C$18:C30)-1,COLUMNS($C$18:C30)-1)<>\"\",OFFSET(DE108_23A!$C$18,ROWS($C$18:C30)-1,COLUMNS($C$18:C30)-1),\"\")","v":""}]
[{"$f":"IF(OFFSET(DE108_23A!$C$18,ROWS($C$18:C31)-1,COLUMNS($C$18:C31)-1)<>\"\",OFFSET(DE108_23A!$C$18,ROWS($C$18:C31)-1,COLUMNS($C$18:C31)-1),\"\")","v":""}]
[{"$f":"IF(OFFSET(DE108_23A!$C$18,ROWS($C$18:C32)-1,COLUMNS($C$18:C32)-1)<>\"\",OFFSET(DE108_23A!$C$18,ROWS($C$18:C32)-1,COLUMNS($C$18:C32)-1),\"\")","v":"PROJECT (70)  Construct proposed SB bridge on US 61 over Flint Creek."}]
[{"$f":"IF(OFFSET(DE108_23A!$C$18,ROWS($C$18:C33)-1,COLUMNS($C$18:C33)-1)<>\"\",OFFSET(DE108_23A!$C$18,ROWS($C$18:C33)-1,COLUMNS($C$18:C33)-1),\"\")","v":"        - Refer to the (62) grading project for all traffic control."}]
[{"$f":"IF(OFFSET(DE108_23A!$C$18,ROWS($C$18:C34)-1,COLUMNS($C$18:C34)-1)<>\"\",OFFSET(DE108_23A!$C$18,ROWS($C$18:C34)-1,COLUMNS($C$18:C34)-1),\"\")","v":""}]
[{"$f":"IF(OFFSET(DE108_23A!$C$18,ROWS($C$18:C35)-1,COLUMNS($C$18:C35)-1)<>\"\",OFFSET(DE108_23A!$C$18,ROWS($C$18:C35)-1,COLUMNS($C$18:C35)-1),\"\")","v":""}]
[{"$f":"IF(OFFSET(DE108_23A!$C$18,ROWS($C$18:C36)-1,COLUMNS($C$18:C36)-1)<>\"\",OFFSET(DE108_23A!$C$18,ROWS($C$18:C36)-1,COLUMNS($C$18:C36)-1),\"\")","v":"PROJECT (68)  Pave proposed SB lanes of US 61 and construct temporary median crossovers and temporary detour pavements."}]
[{"$f":"IF(OFFSET(DE108_23A!$C$18,ROWS($C$18:C37)-1,COLUMNS($C$18:C37)-1)<>\"\",OFFSET(DE108_23A!$C$18,ROWS($C$18:C37)-1,COLUMNS($C$18:C37)-1),\"\")","v":"Existing US 61"}]
[{"$f":"IF(OFFSET(DE108_23A!$C$18,ROWS($C$18:C38)-1,COLUMNS($C$18:C38)-1)<>\"\",OFFSET(DE108_23A!$C$18,ROWS($C$18:C38)-1,COLUMNS($C$18:C38)-1),\"\")","v":"        - Maintain traffic on existing US 61 at all times as noted in the staging notes."}]
[{"$f":"IF(OFFSET(DE108_23A!$C$18,ROWS($C$18:C39)-1,COLUMNS($C$18:C39)-1)<>\"\",OFFSET(DE108_23A!$C$18,ROWS($C$18:C39)-1,COLUMNS($C$18:C39)-1),\"\")","v":"        - Maintain traffic to all farmstead and field entrances as noted in the staging plans at all times."}]
[{"$f":"IF(OFFSET(DE108_23A!$C$18,ROWS($C$18:C40)-1,COLUMNS($C$18:C40)-1)<>\"\",OFFSET(DE108_23A!$C$18,ROWS($C$18:C40)-1,COLUMNS($C$18:C40)-1),\"\")","v":""}]
[{"$f":"IF(OFFSET(DE108_23A!$C$18,ROWS($C$18:C41)-1,COLUMNS($C$18:C41)-1)<>\"\",OFFSET(DE108_23A!$C$18,ROWS($C$18:C41)-1,COLUMNS($C$18:C41)-1),\"\")","v":"Sideroads: Timberidge Dr., Fawn Rd., Mark Twain Dr. Memorial Park Rd., Lakeside Dr., Plank Rd., Flint Bottom Rd., Upper Flint Rd.,"}]
[{"$f":"IF(OFFSET(DE108_23A!$C$18,ROWS($C$18:C42)-1,COLUMNS($C$18:C42)-1)<>\"\",OFFSET(DE108_23A!$C$18,ROWS($C$18:C42)-1,COLUMNS($C$18:C42)-1),\"\")","v":"          Tanner Ln. left & right, 130th St., Pfeiff Rd., Iowa City Rd. left & right, 150th St.  left & right,"}]
[{"$f":"IF(OFFSET(DE108_23A!$C$18,ROWS($C$18:C43)-1,COLUMNS($C$18:C43)-1)<>\"\",OFFSET(DE108_23A!$C$18,ROWS($C$18:C43)-1,COLUMNS($C$18:C43)-1),\"\")","v":"          160th St. left & right, 170th St., Stony Hollow Rd.,180th St., Dodgeville Rd., 182nd St., 190th St., Sperry Rd., 198th St., "}]
[{"$f":"IF(OFFSET(DE108_23A!$C$18,ROWS($C$18:C44)-1,COLUMNS($C$18:C44)-1)<>\"\",OFFSET(DE108_23A!$C$18,ROWS($C$18:C44)-1,COLUMNS($C$18:C44)-1),\"\")","v":"          and Pleasant Grove Rd."}]
[{"$f":"IF(OFFSET(DE108_23A!$C$18,ROWS($C$18:C45)-1,COLUMNS($C$18:C45)-1)<>\"\",OFFSET(DE108_23A!$C$18,ROWS($C$18:C45)-1,COLUMNS($C$18:C45)-1),\"\")","v":"        - Maintain traffic on sideroads as noted in the staging plans at all times."}]
[{"$f":"IF(OFFSET(DE108_23A!$C$18,ROWS($C$18:C46)-1,COLUMNS($C$18:C46)-1)<>\"\",OFFSET(DE108_23A!$C$18,ROWS($C$18:C46)-1,COLUMNS($C$18:C46)-1),\"\")","v":"        - Maintain traffic on Sunnyside Dr. at all times as noted in the J-sheets."}]
[{"$f":"IF(OFFSET(DE108_23A!$C$18,ROWS($C$18:C47)-1,COLUMNS($C$18:C47)-1)<>\"\",OFFSET(DE108_23A!$C$18,ROWS($C$18:C47)-1,COLUMNS($C$18:C47)-1),\"\")","v":""}]
[{"$f":"IF(OFFSET(DE108_23A!$C$18,ROWS($C$18:C48)-1,COLUMNS($C$18:C48)-1)<>\"\",OFFSET(DE108_23A!$C$18,ROWS($C$18:C48)-1,COLUMNS($C$18:C48)-1),\"\")","v":""}]
[{"$f":"IF(OFFSET(DE108_23A!$C$18,ROWS($C$18:C49)-1,COLUMNS($C$18:C49)-1)<>\"\",OFFSET(DE108_23A!$C$18,ROWS($C$18:C49)-1,COLUMNS($C$18:C49)-1),\"\")","v":"PROJECT (69)  Grade and pave proposed NB lanes of US 61"}]
[{"$f":"IF(OFFSET(DE108_23A!$C$18,ROWS($C$18:C50)-1,COLUMNS($C$18:C50)-1)<>\"\",OFFSET(DE108_23A!$C$18,ROWS($C$18:C50)-1,COLUMNS($C$18:C50)-1),\"\")","v":"Existing US 61"}]
[{"$f":"IF(OFFSET(DE108_23A!$C$18,ROWS($C$18:C51)-1,COLUMNS($C$18:C51)-1)<>\"\",OFFSET(DE108_23A!$C$18,ROWS($C$18:C51)-1,COLUMNS($C$18:C51)-1),\"\")","v":"        - Maintain traffic on US 61 as noted in the staging plan at all times, except as noted below:"}]
[{"$f":"IF(OFFSET(DE108_23A!$C$18,ROWS($C$18:C52)-1,COLUMNS($C$18:C52)-1)<>\"\",OFFSET(DE108_23A!$C$18,ROWS($C$18:C52)-1,COLUMNS($C$18:C52)-1),\"\")","v":"            i.  At least one lane of traffic is to remain open during construction of the left and right turn lanes."}]
[{"$f":"IF(OFFSET(DE108_23A!$C$18,ROWS($C$18:C53)-1,COLUMNS($C$18:C53)-1)<>\"\",OFFSET(DE108_23A!$C$18,ROWS($C$18:C53)-1,COLUMNS($C$18:C53)-1),\"\")","v":"        - Maintain traffic to all farmstead and field entrances as noted in the staging plans at all times."}]
[{"$f":"IF(OFFSET(DE108_23A!$C$18,ROWS($C$18:C54)-1,COLUMNS($C$18:C54)-1)<>\"\",OFFSET(DE108_23A!$C$18,ROWS($C$18:C54)-1,COLUMNS($C$18:C54)-1),\"\")","v":""}]
[{"$f":"IF(OFFSET(DE108_23A!$C$18,ROWS($C$18:C55)-1,COLUMNS($C$18:C55)-1)<>\"\",OFFSET(DE108_23A!$C$18,ROWS($C$18:C55)-1,COLUMNS($C$18:C55)-1),\"\")","v":"Sideroads: Timberidge Dr., Fawn Rd., Mark Twain Dr. Memorial Park Rd., Lakeside Dr., Plank Rd., Flint Bottom Rd., Upper Flint Rd.,"}]
[{"$f":"IF(OFFSET(DE108_23A!$C$18,ROWS($C$18:C56)-1,COLUMNS($C$18:C56)-1)<>\"\",OFFSET(DE108_23A!$C$18,ROWS($C$18:C56)-1,COLUMNS($C$18:C56)-1),\"\")","v":"          Tanner Ln. left & right, 130th St., Pfeiff Rd., Iowa City Rd. left & right, 150th St.  left & right,"}]
[{"$f":"IF(OFFSET(DE108_23A!$C$18,ROWS($C$18:C57)-1,COLUMNS($C$18:C57)-1)<>\"\",OFFSET(DE108_23A!$C$18,ROWS($C$18:C57)-1,COLUMNS($C$18:C57)-1),\"\")","v":"          160th St. left & right, 170th St., Stony Hollow Rd.,180th St., Dodgeville Rd., 182nd St., 190th St., Sperry Rd., 198th St., "}]
[{"$f":"IF(OFFSET(DE108_23A!$C$18,ROWS($C$18:C58)-1,COLUMNS($C$18:C58)-1)<>\"\",OFFSET(DE108_23A!$C$18,ROWS($C$18:C58)-1,COLUMNS($C$18:C58)-1),\"\")","v":"          and Pleasant Grove Rd."}]
[{"$f":"IF(OFFSET(DE108_23A!$C$18,ROWS($C$18:C59)-1,COLUMNS($C$18:C59)-1)<>\"\",OFFSET(DE108_23A!$C$18,ROWS($C$18:C59)-1,COLUMNS($C$18:C59)-1),\"\")","v":"        - Maintain traffic on existing sideroads as noted in the staging plans at all times."}]
[{"$f":"IF(OFFSET(DE108_23A!$C$18,ROWS($C$18:C60)-1,COLUMNS($C$18:C60)-1)<>\"\",OFFSET(DE108_23A!$C$18,ROWS($C$18:C60)-1,COLUMNS($C$18:C60)-1),\"\")","v":"        - Maintain traffic on Sunnyside Dr. at all times as noted in the J-sheets."}]
[{"$f":"IF(OFFSET(DE108_23A!$C$18,ROWS($C$18:C61)-1,COLUMNS($C$18:C61)-1)<>\"\",OFFSET(DE108_23A!$C$18,ROWS($C$18:C61)-1,COLUMNS($C$18:C61)-1),\"\")","v":""}]
[{"$f":"IF(OFFSET(DE108_23A!$C$18,ROWS($C$18:C62)-1,COLUMNS($C$18:C62)-1)<>\"\",OFFSET(DE108_23A!$C$18,ROWS($C$18:C62)-1,COLUMNS($C$18:C62)-1),\"\")","v":""}]
[{"$f":"IF(OFFSET(DE108_23A!$C$18,ROWS($C$18:C63)-1,COLUMNS($C$18:C63)-1)<>\"\",OFFSET(DE108_23A!$C$18,ROWS($C$18:C63)-1,COLUMNS($C$18:C63)-1),\"\")","v":"PROJECT (71)  Construct proposed NB bridge on US 61 over Flint Creek."}]
[{"$f":"IF(OFFSET(DE108_23A!$C$18,ROWS($C$18:C64)-1,COLUMNS($C$18:C64)-1)<>\"\",OFFSET(DE108_23A!$C$18,ROWS($C$18:C64)-1,COLUMNS($C$18:C64)-1),\"\")","v":"        - Refer to the (69) grade/pave project for all traffic control."}]
[{"$f":"IF(OFFSET(DE108_23A!$C$18,ROWS($C$18:C65)-1,COLUMNS($C$18:C65)-1)<>\"\",OFFSET(DE108_23A!$C$18,ROWS($C$18:C65)-1,COLUMNS($C$18:C65)-1),\"\")","v":""}]
[{"$f":"IF(OFFSET(DE108_23A!$C$18,ROWS($C$18:C66)-1,COLUMNS($C$18:C66)-1)<>\"\",OFFSET(DE108_23A!$C$18,ROWS($C$18:C66)-1,COLUMNS($C$18:C66)-1),\"\")","v":""}]
[{"$f":"IF(OFFSET(DE108_23A!$C$18,ROWS($C$18:C67)-1,COLUMNS($C$18:C67)-1)<>\"\",OFFSET(DE108_23A!$C$18,ROWS($C$18:C67)-1,COLUMNS($C$18:C67)-1),\"\")","v":""}]
[{"$f":"IF(OFFSET(DE108_23A!$C$18,ROWS($C$18:C68)-1,COLUMNS($C$18:C68)-1)<>\"\",OFFSET(DE108_23A!$C$18,ROWS($C$18:C68)-1,COLUMNS($C$18:C68)-1),\"\")","v":""}]
[{"$f":"IF(OFFSET(DE108_23A!$C$18,ROWS($C$18:C69)-1,COLUMNS($C$18:C69)-1)<>\"\",OFFSET(DE108_23A!$C$18,ROWS($C$18:C69)-1,COLUMNS($C$18:C69)-1),\"\")","v":""}]
[{"$f":"IF(OFFSET(DE108_23A!$C$18,ROWS($C$18:C70)-1,COLUMNS($C$18:C70)-1)<>\"\",OFFSET(DE108_23A!$C$18,ROWS($C$18:C70)-1,COLUMNS($C$18:C70)-1),\"\")","v":""}]
[{"$f":"IF(OFFSET(DE108_23A!$C$18,ROWS($C$18:C71)-1,COLUMNS($C$18:C71)-1)<>\"\",OFFSET(DE108_23A!$C$18,ROWS($C$18:C71)-1,COLUMNS($C$18:C71)-1),\"\")","v":""}]
[{"$f":"IF(OFFSET(DE108_23A!$C$18,ROWS($C$18:C72)-1,COLUMNS($C$18:C72)-1)<>\"\",OFFSET(DE108_23A!$C$18,ROWS($C$18:C72)-1,COLUMNS($C$18:C72)-1),\"\")","v":""}]
[{"$f":"IF(OFFSET(DE108_23A!$C$18,ROWS($C$18:C73)-1,COLUMNS($C$18:C73)-1)<>\"\",OFFSET(DE108_23A!$C$18,ROWS($C$18:C73)-1,COLUMNS($C$18:C73)-1),\"\")","v":""}]
[{"$f":"IF(OFFSET(DE108_23A!$C$18,ROWS($C$18:C74)-1,COLUMNS($C$18:C74)-1)<>\"\",OFFSET(DE108_23A!$C$18,ROWS($C$18:C74)-1,COLUMNS($C$18:C74)-1),\"\")","v":""}]

{"sheet":"108_26A","index":6,"n_rows":176,"n_cols":1,"rows_kept":176,"cut":false,"hidden":false,"merged":[[2,0,3,0],[92,0,93,0]]}
["108-26A"]
["2008-08-01"]
["STAGING NOTES"]
[]
[{"$f":"IF(OFFSET(DE108_26A!$C$18,ROWS($C$18:C18)-1,COLUMNS($C$18:C18)-1)<>\"\",OFFSET(DE108_26A!$C$18,ROWS($C$18:C18)-1,COLUMNS($C$18:C18)-1),\"\")","v":"PROJECT (62)  Grade proposed SB/NB lanes of US 61, construct the sideroad culvert under proposed Plank Rd., construct the sideroad"}]
[{"$f":"IF(OFFSET(DE108_26A!$C$18,ROWS($C$18:C19)-1,COLUMNS($C$18:C19)-1)<>\"\",OFFSET(DE108_26A!$C$18,ROWS($C$18:C19)-1,COLUMNS($C$18:C19)-1),\"\")","v":"culvert under Stoney Hollow Rd., and construct 1/2 of the culvert under proposed NB US-61 north of 210th St."}]
[{"$f":"IF(OFFSET(DE108_26A!$C$18,ROWS($C$18:C20)-1,COLUMNS($C$18:C20)-1)<>\"\",OFFSET(DE108_26A!$C$18,ROWS($C$18:C20)-1,COLUMNS($C$18:C20)-1),\"\")","v":"It is not the intent of the sequence of construction to confine the Contractor's activities to the area of suggested stages alone."}]
[{"$f":"IF(OFFSET(DE108_26A!$C$18,ROWS($C$18:C21)-1,COLUMNS($C$18:C21)-1)<>\"\",OFFSET(DE108_26A!$C$18,ROWS($C$18:C21)-1,COLUMNS($C$18:C21)-1),\"\")","v":"It is understood that some of the various steps, though listed in numerical order, may occur simultaneously. Therefore, the Contractor"}]
[{"$f":"IF(OFFSET(DE108_26A!$C$18,ROWS($C$18:C22)-1,COLUMNS($C$18:C22)-1)<>\"\",OFFSET(DE108_26A!$C$18,ROWS($C$18:C22)-1,COLUMNS($C$18:C22)-1),\"\")","v":"may conduct several operations concurrently on the project, provided that the existing traffic is maintained and that these operations"}]
[{"$f":"IF(OFFSET(DE108_26A!$C$18,ROWS($C$18:C23)-1,COLUMNS($C$18:C23)-1)<>\"\",OFFSET(DE108_26A!$C$18,ROWS($C$18:C23)-1,COLUMNS($C$18:C23)-1),\"\")","v":"do not conflict with the staging indicated here in."}]
[{"$f":"IF(OFFSET(DE108_26A!$C$18,ROWS($C$18:C24)-1,COLUMNS($C$18:C24)-1)<>\"\",OFFSET(DE108_26A!$C$18,ROWS($C$18:C24)-1,COLUMNS($C$18:C24)-1),\"\")","v":""}]
[{"$f":"IF(OFFSET(DE108_26A!$C$18,ROWS($C$18:C25)-1,COLUMNS($C$18:C25)-1)<>\"\",OFFSET(DE108_26A!$C$18,ROWS($C$18:C25)-1,COLUMNS($C$18:C25)-1),\"\")","v":"It is recognized that as various activities related to the construction progress, certain situations may arise which will preclude"}]
[{"$f":"IF(OFFSET(DE108_26A!$C$18,ROWS($C$18:C26)-1,COLUMNS($C$18:C26)-1)<>\"\",OFFSET(DE108_26A!$C$18,ROWS($C$18:C26)-1,COLUMNS($C$18:C26)-1),\"\")","v":"adhering to the original construction sequence or, which in the opinion of the Contractor, would readily adhere itself to a more"}]
[{"$f":"IF(OFFSET(DE108_26A!$C$18,ROWS($C$18:C27)-1,COLUMNS($C$18:C27)-1)<>\"\",OFFSET(DE108_26A!$C$18,ROWS($C$18:C27)-1,COLUMNS($C$18:C27)-1),\"\")","v":"efficient staging operation. Should this occur, and the Contractor desire to deviate from the original plan, they shall submit an"}]
[{"$f":"IF(OFFSET(DE108_26A!$C$18,ROWS($C$18:C28)-1,COLUMNS($C$18:C28)-1)<>\"\",OFFSET(DE108_26A!$C$18,ROWS($C$18:C28)-1,COLUMNS($C$18:C28)-1),\"\")","v":"alternate plan for approval by the Engineer."}]
[{"$f":"IF(OFFSET(DE108_26A!$C$18,ROWS($C$18:C29)-1,COLUMNS($C$18:C29)-1)<>\"\",OFFSET(DE108_26A!$C$18,ROWS($C$18:C29)-1,COLUMNS($C$18:C29)-1),\"\")","v":""}]
[{"$f":"IF(OFFSET(DE108_26A!$C$18,ROWS($C$18:C30)-1,COLUMNS($C$18:C30)-1)<>\"\",OFFSET(DE108_26A!$C$18,ROWS($C$18:C30)-1,COLUMNS($C$18:C30)-1),\"\")","v":"   Traffic:"}]
[{"$f":"IF(OFFSET(DE108_26A!$C$18,ROWS($C$18:C31)-1,COLUMNS($C$18:C31)-1)<>\"\",OFFSET(DE108_26A!$C$18,ROWS($C$18:C31)-1,COLUMNS($C$18:C31)-1),\"\")","v":"     -  Maintain traffic on both lanes of existing US 61 at all times, except as noted below."}]
[{"$f":"IF(OFFSET(DE108_26A!$C$18,ROWS($C$18:C32)-1,COLUMNS($C$18:C32)-1)<>\"\",OFFSET(DE108_26A!$C$18,ROWS($C$18:C32)-1,COLUMNS($C$18:C32)-1),\"\")","v":"             1.  Maintain at least 1 lane of traffic on existing US 61 when grading and paving temporary detour 3 located on "}]
[{"$f":"IF(OFFSET(DE108_26A!$C$18,ROWS($C$18:C33)-1,COLUMNS($C$18:C33)-1)<>\"\",OFFSET(DE108_26A!$C$18,ROWS($C$18:C33)-1,COLUMNS($C$18:C33)-1),\"\")","v":"                 existing US 61 near the intersection of 190th St./Sperry Rd."}]
[{"$f":"IF(OFFSET(DE108_26A!$C$18,ROWS($C$18:C34)-1,COLUMNS($C$18:C34)-1)<>\"\",OFFSET(DE108_26A!$C$18,ROWS($C$18:C34)-1,COLUMNS($C$18:C34)-1),\"\")","v":"    -  Maintain traffic on the following side roads at all times: Timberidge Dr., Fawn Rd., Mark Twain Dr., Memorial Park Rd., "}]
[{"$f":"IF(OFFSET(DE108_26A!$C$18,ROWS($C$18:C35)-1,COLUMNS($C$18:C35)-1)<>\"\",OFFSET(DE108_26A!$C$18,ROWS($C$18:C35)-1,COLUMNS($C$18:C35)-1),\"\")","v":"       Lakeside Dr., Flint Bottom Rd., Upper Flint Rd., Tanner Lane left & right., 130th St., 124th Ave., 150th St. right, "}]
[{"$f":"IF(OFFSET(DE108_26A!$C$18,ROWS($C$18:C36)-1,COLUMNS($C$18:C36)-1)<>\"\",OFFSET(DE108_26A!$C$18,ROWS($C$18:C36)-1,COLUMNS($C$18:C36)-1),\"\")","v":"       150th St. E., 160th St. right, 170th St. left., Dodgeville Rd., Sperry Rd., 198th St., and Pleasant Grove Rd."}]
[{"$f":"IF(OFFSET(DE108_26A!$C$18,ROWS($C$18:C37)-1,COLUMNS($C$18:C37)-1)<>\"\",OFFSET(DE108_26A!$C$18,ROWS($C$18:C37)-1,COLUMNS($C$18:C37)-1),\"\")","v":"    -  190th St. will be closed for a short time to grade the sideroad and reopened upon completion."}]
[{"$f":"IF(OFFSET(DE108_26A!$C$18,ROWS($C$18:C38)-1,COLUMNS($C$18:C38)-1)<>\"\",OFFSET(DE108_26A!$C$18,ROWS($C$18:C38)-1,COLUMNS($C$18:C38)-1),\"\")","v":"    -  All homestead and field entrances are to remain open to traffic at all times except during reconstruction."}]
[{"$f":"IF(OFFSET(DE108_26A!$C$18,ROWS($C$18:C39)-1,COLUMNS($C$18:C39)-1)<>\"\",OFFSET(DE108_26A!$C$18,ROWS($C$18:C39)-1,COLUMNS($C$18:C39)-1),\"\")","v":"   Construction:"}]
[{"$f":"IF(OFFSET(DE108_26A!$C$18,ROWS($C$18:C40)-1,COLUMNS($C$18:C40)-1)<>\"\",OFFSET(DE108_26A!$C$18,ROWS($C$18:C40)-1,COLUMNS($C$18:C40)-1),\"\")","v":"     -  Grade proposed SB US 61 from just north of Memorial Park Rd. to and including the south Flint Creek bridge berm."}]
[{"$f":"IF(OFFSET(DE108_26A!$C$18,ROWS($C$18:C41)-1,COLUMNS($C$18:C41)-1)<>\"\",OFFSET(DE108_26A!$C$18,ROWS($C$18:C41)-1,COLUMNS($C$18:C41)-1),\"\")","v":"     -  Construct the Twin RCB located under proposed Plank Rd."}]
[{"$f":"IF(OFFSET(DE108_26A!$C$18,ROWS($C$18:C42)-1,COLUMNS($C$18:C42)-1)<>\"\",OFFSET(DE108_26A!$C$18,ROWS($C$18:C42)-1,COLUMNS($C$18:C42)-1),\"\")","v":"     -  Remove existing Plank Rd. and grade proposed Plank Rd."}]
[{"$f":"IF(OFFSET(DE108_26A!$C$18,ROWS($C$18:C43)-1,COLUMNS($C$18:C43)-1)<>\"\",OFFSET(DE108_26A!$C$18,ROWS($C$18:C43)-1,COLUMNS($C$18:C43)-1),\"\")","v":"     -  Grade proposed SB US 61 from and including the north Flint Creek bridge berm to just north of 160th St."}]
[{"$f":"IF(OFFSET(DE108_26A!$C$18,ROWS($C$18:C44)-1,COLUMNS($C$18:C44)-1)<>\"\",OFFSET(DE108_26A!$C$18,ROWS($C$18:C44)-1,COLUMNS($C$18:C44)-1),\"\")","v":"     -  Grade proposed NB US 61 from just south of Upper Flint Rd. to just north of Tanner Ln."}]
[{"$f":"IF(OFFSET(DE108_26A!$C$18,ROWS($C$18:C45)-1,COLUMNS($C$18:C45)-1)<>\"\",OFFSET(DE108_26A!$C$18,ROWS($C$18:C45)-1,COLUMNS($C$18:C45)-1),\"\")","v":"     -  Grade proposed NB US 61 from just north of Pfeiff Rd. to just north of 160th St."}]
[{"$f":"IF(OFFSET(DE108_26A!$C$18,ROWS($C$18:C46)-1,COLUMNS($C$18:C46)-1)<>\"\",OFFSET(DE108_26A!$C$18,ROWS($C$18:C46)-1,COLUMNS($C$18:C46)-1),\"\")","v":"     -  Grade and pave SB temporary detour pavement 3 located at the intersection US 61 with 190th St./Sperry Rd. "}]
[{"$f":"IF(OFFSET(DE108_26A!$C$18,ROWS($C$18:C47)-1,COLUMNS($C$18:C47)-1)<>\"\",OFFSET(DE108_26A!$C$18,ROWS($C$18:C47)-1,COLUMNS($C$18:C47)-1),\"\")","v":"     -  Grade proposed NB US 61 from just north of 160th St. to just south of 210th St."}]
[{"$f":"IF(OFFSET(DE108_26A!$C$18,ROWS($C$18:C48)-1,COLUMNS($C$18:C48)-1)<>\"\",OFFSET(DE108_26A!$C$18,ROWS($C$18:C48)-1,COLUMNS($C$18:C48)-1),\"\")","v":"     -  Grade proposed NB US 61 from just north of 210th St. to just south of Hawk Rd."}]
[{"$f":"IF(OFFSET(DE108_26A!$C$18,ROWS($C$18:C49)-1,COLUMNS($C$18:C49)-1)<>\"\",OFFSET(DE108_26A!$C$18,ROWS($C$18:C49)-1,COLUMNS($C$18:C49)-1),\"\")","v":"     -  Grade, surface with granular material, and reopen to traffic immediately the following sideroads."}]
[{"$f":"IF(OFFSET(DE108_26A!$C$18,ROWS($C$18:C50)-1,COLUMNS($C$18:C50)-1)<>\"\",OFFSET(DE108_26A!$C$18,ROWS($C$18:C50)-1,COLUMNS($C$18:C50)-1),\"\")","v":"            1.  Proposed Pfeiff Rd., Iowa City Rd. left, 150th St. left, 160th St. left, Stoney Hollow Rd., "}]
[{"$f":"IF(OFFSET(DE108_26A!$C$18,ROWS($C$18:C51)-1,COLUMNS($C$18:C51)-1)<>\"\",OFFSET(DE108_26A!$C$18,ROWS($C$18:C51)-1,COLUMNS($C$18:C51)-1),\"\")","v":"                180th St. right, 182nd St., and 190th St."}]
[{"$f":"IF(OFFSET(DE108_26A!$C$18,ROWS($C$18:C52)-1,COLUMNS($C$18:C52)-1)<>\"\",OFFSET(DE108_26A!$C$18,ROWS($C$18:C52)-1,COLUMNS($C$18:C52)-1),\"\")","v":"     -  Grade/Surface proposed the intersection of US 61 with 190th St./Sperry Rd. "}]
[{"$f":"IF(OFFSET(DE108_26A!$C$18,ROWS($C$18:C53)-1,COLUMNS($C$18:C53)-1)<>\"\",OFFSET(DE108_26A!$C$18,ROWS($C$18:C53)-1,COLUMNS($C$18:C53)-1),\"\")","v":"     -  Construct 1/2 of the proposed RCB culvert under proposed NB lanes of US 61 just north of 210th St. "}]
[{"$f":"IF(OFFSET(DE108_26A!$C$18,ROWS($C$18:C54)-1,COLUMNS($C$18:C54)-1)<>\"\",OFFSET(DE108_26A!$C$18,ROWS($C$18:C54)-1,COLUMNS($C$18:C54)-1),\"\")","v":"     -  Construct proposed RCB under Plank Rd."}]
[{"$f":"IF(OFFSET(DE108_26A!$C$18,ROWS($C$18:C55)-1,COLUMNS($C$18:C55)-1)<>\"\",OFFSET(DE108_26A!$C$18,ROWS($C$18:C55)-1,COLUMNS($C$18:C55)-1),\"\")","v":"     -  Construct proposed RCB under Stoney Hollow Rd."}]
[{"$f":"IF(OFFSET(DE108_26A!$C$18,ROWS($C$18:C56)-1,COLUMNS($C$18:C56)-1)<>\"\",OFFSET(DE108_26A!$C$18,ROWS($C$18:C56)-1,COLUMNS($C$18:C56)-1),\"\")","v":""}]
[{"$f":"IF(OFFSET(DE108_26A!$C$18,ROWS($C$18:C57)-1,COLUMNS($C$18:C57)-1)<>\"\",OFFSET(DE108_26A!$C$18,ROWS($C$18:C57)-1,COLUMNS($C$18:C57)-1),\"\")","v":"PROJECT (70)  Construct proposed SB bridge over Flint Creek."}]
[{"$f":"IF(OFFSET(DE108_26A!$C$18,ROWS($C$18:C58)-1,COLUMNS($C$18:C58)-1)<>\"\",OFFSET(DE108_26A!$C$18,ROWS($C$18:C58)-1,COLUMNS($C$18:C58)-1),\"\")","v":""}]
[{"$f":"IF(OFFSET(DE108_26A!$C$18,ROWS($C$18:C59)-1,COLUMNS($C$18:C59)-1)<>\"\",OFFSET(DE108_26A!$C$18,ROWS($C$18:C59)-1,COLUMNS($C$18:C59)-1),\"\")","v":"   Traffic:"}]
[{"$f":"IF(OFFSET(DE108_26A!$C$18,ROWS($C$18:C60)-1,COLUMNS($C$18:C60)-1)<>\"\",OFFSET(DE108_26A!$C$18,ROWS($C$18:C60)-1,COLUMNS($C$18:C60)-1),\"\")","v":"     -  Refer to the (62) grading project for all traffic control."}]
[{"$f":"IF(OFFSET(DE108_26A!$C$18,ROWS($C$18:C61)-1,COLUMNS($C$18:C61)-1)<>\"\",OFFSET(DE108_26A!$C$18,ROWS($C$18:C61)-1,COLUMNS($C$18:C61)-1),\"\")","v":"   Construction:"}]
[{"$f":"IF(OFFSET(DE108_26A!$C$18,ROWS($C$18:C62)-1,COLUMNS($C$18:C62)-1)<>\"\",OFFSET(DE108_26A!$C$18,ROWS($C$18:C62)-1,COLUMNS($C$18:C62)-1),\"\")","v":"     -  Construct proposed SB US 61 bridge over Flint Creek."}]
[{"$f":"IF(OFFSET(DE108_26A!$C$18,ROWS($C$18:C63)-1,COLUMNS($C$18:C63)-1)<>\"\",OFFSET(DE108_26A!$C$18,ROWS($C$18:C63)-1,COLUMNS($C$18:C63)-1),\"\")","v":""}]
[{"$f":"IF(OFFSET(DE108_26A!$C$18,ROWS($C$18:C64)-1,COLUMNS($C$18:C64)-1)<>\"\",OFFSET(DE108_26A!$C$18,ROWS($C$18:C64)-1,COLUMNS($C$18:C64)-1),\"\")","v":"PROJECT (68)  Pave proposed SB/NB lanes of US 61 and construct temporary median crossovers and temporary detour pavements."}]
[{"$f":"IF(OFFSET(DE108_26A!$C$18,ROWS($C$18:C65)-1,COLUMNS($C$18:C65)-1)<>\"\",OFFSET(DE108_26A!$C$18,ROWS($C$18:C65)-1,COLUMNS($C$18:C65)-1),\"\")","v":""}]
[{"$f":"IF(OFFSET(DE108_26A!$C$18,ROWS($C$18:C66)-1,COLUMNS($C$18:C66)-1)<>\"\",OFFSET(DE108_26A!$C$18,ROWS($C$18:C66)-1,COLUMNS($C$18:C66)-1),\"\")","v":"   Traffic:"}]
[{"$f":"IF(OFFSET(DE108_26A!$C$18,ROWS($C$18:C67)-1,COLUMNS($C$18:C67)-1)<>\"\",OFFSET(DE108_26A!$C$18,ROWS($C$18:C67)-1,COLUMNS($C$18:C67)-1),\"\")","v":"    -  Maintain traffic on existing US 61 at all times from Sunnyside Drive through temporary detour 3 to the EOP."}]
[{"$f":"IF(OFFSET(DE108_26A!$C$18,ROWS($C$18:C68)-1,COLUMNS($C$18:C68)-1)<>\"\",OFFSET(DE108_26A!$C$18,ROWS($C$18:C68)-1,COLUMNS($C$18:C68)-1),\"\")","v":"    -  Maintain traffic on the following side roads at all times: Timberidge Dr., Fawn Rd., Mark Twain Dr., Memorial Park Rd., "}]
[{"$f":"IF(OFFSET(DE108_26A!$C$18,ROWS($C$18:C69)-1,COLUMNS($C$18:C69)-1)<>\"\",OFFSET(DE108_26A!$C$18,ROWS($C$18:C69)-1,COLUMNS($C$18:C69)-1),\"\")","v":"       Lakeside Dr., 130th St. right, 124th Ave., Iowa City Rd. right, 150th St. left & right, 150th St. E., "}]
[{"$f":"IF(OFFSET(DE108_26A!$C$18,ROWS($C$18:C70)-1,COLUMNS($C$18:C70)-1)<>\"\",OFFSET(DE108_26A!$C$18,ROWS($C$18:C70)-1,COLUMNS($C$18:C70)-1),\"\")","v":"       160th St. left & right, 170th St., Stoney Hollow Rd., Dodgeville Rd., 180th St., 182nd St., 190th St., and Pleasant Grove Rd."}]
[{"$f":"IF(OFFSET(DE108_26A!$C$18,ROWS($C$18:C71)-1,COLUMNS($C$18:C71)-1)<>\"\",OFFSET(DE108_26A!$C$18,ROWS($C$18:C71)-1,COLUMNS($C$18:C71)-1),\"\")","v":"    -  All homestead and field entrances are to remain open to traffic at all times except during reconstruction."}]
[{"$f":"IF(OFFSET(DE108_26A!$C$18,ROWS($C$18:C72)-1,COLUMNS($C$18:C72)-1)<>\"\",OFFSET(DE108_26A!$C$18,ROWS($C$18:C72)-1,COLUMNS($C$18:C72)-1),\"\")","v":"   Construction:"}]
[{"$f":"IF(OFFSET(DE108_26A!$C$18,ROWS($C$18:C73)-1,COLUMNS($C$18:C73)-1)<>\"\",OFFSET(DE108_26A!$C$18,ROWS($C$18:C73)-1,COLUMNS($C$18:C73)-1),\"\")","v":"     -  Pave proposed SB US 61 from just north of Memorial Park Rd. to the south Flint Creek bridge berm."}]
[{"$f":"IF(OFFSET(DE108_26A!$C$18,ROWS($C$18:C74)-1,COLUMNS($C$18:C74)-1)<>\"\",OFFSET(DE108_26A!$C$18,ROWS($C$18:C74)-1,COLUMNS($C$18:C74)-1),\"\")","v":"     -  Grade and Pave Flint Bottom Rd., Upper Flint Rd., and Tanner Lane right."}]
[{"$f":"IF(OFFSET(DE108_26A!$C$18,ROWS($C$18:C75)-1,COLUMNS($C$18:C75)-1)<>\"\",OFFSET(DE108_26A!$C$18,ROWS($C$18:C75)-1,COLUMNS($C$18:C75)-1),\"\")","v":"     -  Pave proposed Plank Rd."}]
[{"$f":"IF(OFFSET(DE108_26A!$C$18,ROWS($C$18:C76)-1,COLUMNS($C$18:C76)-1)<>\"\",OFFSET(DE108_26A!$C$18,ROWS($C$18:C76)-1,COLUMNS($C$18:C76)-1),\"\")","v":"     -  Pave proposed SB US 61 from the just north of the proposed SB Flint Creek bridge to just north of 160th St."}]
[{"$f":"IF(OFFSET(DE108_26A!$C$18,ROWS($C$18:C77)-1,COLUMNS($C$18:C77)-1)<>\"\",OFFSET(DE108_26A!$C$18,ROWS($C$18:C77)-1,COLUMNS($C$18:C77)-1),\"\")","v":"     -  Pave proposed NB US 61 from just south of Upper Flint Rd. to just north of Tanner Ln."}]
[{"$f":"IF(OFFSET(DE108_26A!$C$18,ROWS($C$18:C78)-1,COLUMNS($C$18:C78)-1)<>\"\",OFFSET(DE108_26A!$C$18,ROWS($C$18:C78)-1,COLUMNS($C$18:C78)-1),\"\")","v":"     -  Pave proposed NB US 61 from just north of Pfeiff Rd. to just north of 160th St."}]
[{"$f":"IF(OFFSET(DE108_26A!$C$18,ROWS($C$18:C79)-1,COLUMNS($C$18:C79)-1)<>\"\",OFFSET(DE108_26A!$C$18,ROWS($C$18:C79)-1,COLUMNS($C$18:C79)-1),\"\")","v":"     -  Pave proposed NB US 61 from just north of 160th St. to just south of 210th St."}]
[{"$f":"IF(OFFSET(DE108_26A!$C$18,ROWS($C$18:C80)-1,COLUMNS($C$18:C80)-1)<>\"\",OFFSET(DE108_26A!$C$18,ROWS($C$18:C80)-1,COLUMNS($C$18:C80)-1),\"\")","v":"     -  Grade, surface with granular material, and reopen to traffic immediately the following sideroads."}]
[{"$f":"IF(OFFSET(DE108_26A!$C$18,ROWS($C$18:C81)-1,COLUMNS($C$18:C81)-1)<>\"\",OFFSET(DE108_26A!$C$18,ROWS($C$18:C81)-1,COLUMNS($C$18:C81)-1),\"\")","v":"            1.  Proposed Tanner Lane left, Pfeiff Rd., Iowa City Rd. left, 150th St. left, 160th St. left, Stoney Hollow Rd., "}]
[{"$f":"IF(OFFSET(DE108_26A!$C$18,ROWS($C$18:C82)-1,COLUMNS($C$18:C82)-1)<>\"\",OFFSET(DE108_26A!$C$18,ROWS($C$18:C82)-1,COLUMNS($C$18:C82)-1),\"\")","v":"                180th St. right, 182nd St., and 190th St."}]
[{"$f":"IF(OFFSET(DE108_26A!$C$18,ROWS($C$18:C83)-1,COLUMNS($C$18:C83)-1)<>\"\",OFFSET(DE108_26A!$C$18,ROWS($C$18:C83)-1,COLUMNS($C$18:C83)-1),\"\")","v":"     -  Grade/Surface proposed homestead and field entrances as needed."}]
[{"$f":"IF(OFFSET(DE108_26A!$C$18,ROWS($C$18:C84)-1,COLUMNS($C$18:C84)-1)<>\"\",OFFSET(DE108_26A!$C$18,ROWS($C$18:C84)-1,COLUMNS($C$18:C84)-1),\"\")","v":"     -  Remove curb and gutter and construct median crossover 1."}]
[{"$f":"IF(OFFSET(DE108_26A!$C$18,ROWS($C$18:C85)-1,COLUMNS($C$18:C85)-1)<>\"\",OFFSET(DE108_26A!$C$18,ROWS($C$18:C85)-1,COLUMNS($C$18:C85)-1),\"\")","v":"     -  Grade/Pave median crossover 2."}]
[{"$f":"IF(OFFSET(DE108_26A!$C$18,ROWS($C$18:C86)-1,COLUMNS($C$18:C86)-1)<>\"\",OFFSET(DE108_26A!$C$18,ROWS($C$18:C86)-1,COLUMNS($C$18:C86)-1),\"\")","v":"     -  Grade/Pave temporary detour 1."}]
[{"$f":"IF(OFFSET(DE108_26A!$C$18,ROWS($C$18:C87)-1,COLUMNS($C$18:C87)-1)<>\"\",OFFSET(DE108_26A!$C$18,ROWS($C$18:C87)-1,COLUMNS($C$18:C87)-1),\"\")","v":"     -  Grade/Pave temporary detour 2."}]
[{"$f":"IF(OFFSET(DE108_26A!$C$18,ROWS($C$18:C88)-1,COLUMNS($C$18:C88)-1)<>\"\",OFFSET(DE108_26A!$C$18,ROWS($C$18:C88)-1,COLUMNS($C$18:C88)-1),\"\")","v":"     -  Grade/Pave temporary detour 5."}]
[{"$f":"IF(OFFSET(DE108_26A!$C$18,ROWS($C$18:C89)-1,COLUMNS($C$18:C89)-1)<>\"\",OFFSET(DE108_26A!$C$18,ROWS($C$18:C89)-1,COLUMNS($C$18:C89)-1),\"\")","v":""}]
[{"$f":"IF(OFFSET(DE108_26A!$C$18,ROWS($C$18:C90)-1,COLUMNS($C$18:C90)-1)<>\"\",OFFSET(DE108_26A!$C$18,ROWS($C$18:C90)-1,COLUMNS($C$18:C90)-1),\"\")","v":"PROJECT (69)  Grade and pave proposed NB/SB lanes of US 61"}]
[{"$f":"IF(OFFSET(DE108_26A!$C$18,ROWS($C$18:C91)-1,COLUMNS($C$18:C91)-1)<>\"\",OFFSET(DE108_26A!$C$18,ROWS($C$18:C91)-1,COLUMNS($C$18:C91)-1),\"\")","v":""}]
[{"$f":"IF(OFFSET(DE108_26A!$C$18,ROWS($C$18:C92)-1,COLUMNS($C$18:C92)-1)<>\"\",OFFSET(DE108_26A!$C$18,ROWS($C$18:C92)-1,COLUMNS($C$18:C92)-1),\"\")","v":"Stage 1"}]
[{"$f":"IF(OFFSET(DE108_26A!$C$18,ROWS($C$18:C93)-1,COLUMNS($C$18:C93)-1)<>\"\",OFFSET(DE108_26A!$C$18,ROWS($C$18:C93)-1,COLUMNS($C$18:C93)-1),\"\")","v":"   Traffic:"}]
[{"$f":"IF(OFFSET(DE108_26A!$C$18,ROWS($C$18:C94)-1,COLUMNS($C$18:C94)-1)<>\"\",OFFSET(DE108_26A!$C$18,ROWS($C$18:C94)-1,COLUMNS($C$18:C94)-1),\"\")","v":"     -  Maintain traffic on existing NB and SB US 61 between Sunnyside Dr. and the median crossover 1."}]
[{"$f":"IF(OFFSET(DE108_26A!$C$18,ROWS($C$18:C95)-1,COLUMNS($C$18:C95)-1)<>\"\",OFFSET(DE108_26A!$C$18,ROWS($C$18:C95)-1,COLUMNS($C$18:C95)-1),\"\")","v":"     -  Maintain 2 lane 2 way operations on existing US 61 between median crossover 1 and temporary detour 2."}]
[{"$f":"IF(OFFSET(DE108_26A!$C$18,ROWS($C$18:C96)-1,COLUMNS($C$18:C96)-1)<>\"\",OFFSET(DE108_26A!$C$18,ROWS($C$18:C96)-1,COLUMNS($C$18:C96)-1),\"\")","v":"     -  Maintain SB traffic on existing SB US 61 between temporary detour 2 and temporary detour 5."}]
[{"$f":"IF(OFFSET(DE108_26A!$C$18,ROWS($C$18:C97)-1,COLUMNS($C$18:C97)-1)<>\"\",OFFSET(DE108_26A!$C$18,ROWS($C$18:C97)-1,COLUMNS($C$18:C97)-1),\"\")","v":"     -  Maintain NB traffic on proposed NB US 61 between temporary detour 2 and temporary detour 5."}]
[{"$f":"IF(OFFSET(DE108_26A!$C$18,ROWS($C$18:C98)-1,COLUMNS($C$18:C98)-1)<>\"\",OFFSET(DE108_26A!$C$18,ROWS($C$18:C98)-1,COLUMNS($C$18:C98)-1),\"\")","v":"     -  Maintain traffic on all side roads at all times, except as follows: Close Memorial Park Rd. to traffic."}]
[{"$f":"IF(OFFSET(DE108_26A!$C$18,ROWS($C$18:C99)-1,COLUMNS($C$18:C99)-1)<>\"\",OFFSET(DE108_26A!$C$18,ROWS($C$18:C99)-1,COLUMNS($C$18:C99)-1),\"\")","v":"     -  All homestead and field entrances are to remain open to traffic at all times except during reconstruction."}]
[{"$f":"IF(OFFSET(DE108_26A!$C$18,ROWS($C$18:C100)-1,COLUMNS($C$18:C100)-1)<>\"\",OFFSET(DE108_26A!$C$18,ROWS($C$18:C100)-1,COLUMNS($C$18:C100)-1),\"\")","v":"   Construction:"}]
[{"$f":"IF(OFFSET(DE108_26A!$C$18,ROWS($C$18:C101)-1,COLUMNS($C$18:C101)-1)<>\"\",OFFSET(DE108_26A!$C$18,ROWS($C$18:C101)-1,COLUMNS($C$18:C101)-1),\"\")","v":"     -  Remove existing US 61 and grade/pave proposed SB lanes from south of Mark Twain Dr. to just north of Memorial Park Rd."}]
[{"$f":"IF(OFFSET(DE108_26A!$C$18,ROWS($C$18:C102)-1,COLUMNS($C$18:C102)-1)<>\"\",OFFSET(DE108_26A!$C$18,ROWS($C$18:C102)-1,COLUMNS($C$18:C102)-1),\"\")","v":"     -  Grade/Pave Memorial Park Rd. west of the new SB lanes of US 61."}]
[{"$f":"IF(OFFSET(DE108_26A!$C$18,ROWS($C$18:C103)-1,COLUMNS($C$18:C103)-1)<>\"\",OFFSET(DE108_26A!$C$18,ROWS($C$18:C103)-1,COLUMNS($C$18:C103)-1),\"\")","v":"     -  Grade/Surface proposed homestead and field entrances as needed."}]
["108-26A"]
["2008-08-01"]
["STAGING NOTES"]
[]
[{"$f":"IF(OFFSET(DE108_26A!$C$104,ROWS($C$104:C104)-1,COLUMNS($C$104:C104)-1)<>\"\",OFFSET(DE108_26A!$C$104,ROWS($C$104:C104)-1,COLUMNS($C$104:C104)-1),\"\")","v":""}]
[{"$f":"IF(OFFSET(DE108_26A!$C$104,ROWS($C$104:C105)-1,COLUMNS($C$104:C105)-1)<>\"\",OFFSET(DE108_26A!$C$104,ROWS($C$104:C105)-1,COLUMNS($C$104:C105)-1),\"\")","v":"Stage 2"}]
[{"$f":"IF(OFFSET(DE108_26A!$C$104,ROWS($C$104:C106)-1,COLUMNS($C$104:C106)-1)<>\"\",OFFSET(DE108_26A!$C$104,ROWS($C$104:C106)-1,COLUMNS($C$104:C106)-1),\"\")","v":"   Traffic:"}]
[{"$f":"IF(OFFSET(DE108_26A!$C$104,ROWS($C$104:C107)-1,COLUMNS($C$104:C107)-1)<>\"\",OFFSET(DE108_26A!$C$104,ROWS($C$104:C107)-1,COLUMNS($C$104:C107)-1),\"\")","v":"     -  Maintain traffic on existing NB and SB US 61 between Sunnyside Dr. and median crossover 1."}]
[{"$f":"IF(OFFSET(DE108_26A!$C$104,ROWS($C$104:C108)-1,COLUMNS($C$104:C108)-1)<>\"\",OFFSET(DE108_26A!$C$104,ROWS($C$104:C108)-1,COLUMNS($C$104:C108)-1),\"\")","v":"     -  Maintain 2 lane 2 way operations on proposed SB US 61 between median crossover 1 and median crossover 2."}]
[{"$f":"IF(OFFSET(DE108_26A!$C$104,ROWS($C$104:C109)-1,COLUMNS($C$104:C109)-1)<>\"\",OFFSET(DE108_26A!$C$104,ROWS($C$104:C109)-1,COLUMNS($C$104:C109)-1),\"\")","v":"     -  Maintain 2 lane 2 way operations on proposed NB US 61 between median crossover 2 and temporary detour 1."}]
[{"$f":"IF(OFFSET(DE108_26A!$C$104,ROWS($C$104:C110)-1,COLUMNS($C$104:C110)-1)<>\"\",OFFSET(DE108_26A!$C$104,ROWS($C$104:C110)-1,COLUMNS($C$104:C110)-1),\"\")","v":"     -  Maintain 2 lane 2 way operations on existing US 61 between temporary detour 1 and temporary detour 2."}]
[{"$f":"IF(OFFSET(DE108_26A!$C$104,ROWS($C$104:C111)-1,COLUMNS($C$104:C111)-1)<>\"\",OFFSET(DE108_26A!$C$104,ROWS($C$104:C111)-1,COLUMNS($C$104:C111)-1),\"\")","v":"     -  Maintain 2 lane 2 way operations on proposed NB US 61 between temporary detour 2 and temporary detour 5."}]
[{"$f":"IF(OFFSET(DE108_26A!$C$104,ROWS($C$104:C112)-1,COLUMNS($C$104:C112)-1)<>\"\",OFFSET(DE108_26A!$C$104,ROWS($C$104:C112)-1,COLUMNS($C$104:C112)-1),\"\")","v":"     -  Maintain traffic on the following side roads at all times: Timberidge Dr., Fawn Rd., Memorial Park Rd., Plank Rd., "}]
[{"$f":"IF(OFFSET(DE108_26A!$C$104,ROWS($C$104:C113)-1,COLUMNS($C$104:C113)-1)<>\"\",OFFSET(DE108_26A!$C$104,ROWS($C$104:C113)-1,COLUMNS($C$104:C113)-1),\"\")","v":"        Flint Bottom Rd., Upper Flint Rd., Tanner Rd. E. & W., Pfeiff Rd., Iowa City Rd. left & right, 150th St. left & right, "}]
[{"$f":"IF(OFFSET(DE108_26A!$C$104,ROWS($C$104:C114)-1,COLUMNS($C$104:C114)-1)<>\"\",OFFSET(DE108_26A!$C$104,ROWS($C$104:C114)-1,COLUMNS($C$104:C114)-1),\"\")","v":"        160th St. left, Stoney Hollow Rd., 180th St. E.,182nd St., 190th St., Sperry Rd., and 198th St."}]
[{"$f":"IF(OFFSET(DE108_26A!$C$104,ROWS($C$104:C115)-1,COLUMNS($C$104:C115)-1)<>\"\",OFFSET(DE108_26A!$C$104,ROWS($C$104:C115)-1,COLUMNS($C$104:C115)-1),\"\")","v":"     -  All homestead and field entrances are to remain open to traffic at all times except during reconstruction."}]
[{"$f":"IF(OFFSET(DE108_26A!$C$104,ROWS($C$104:C116)-1,COLUMNS($C$104:C116)-1)<>\"\",OFFSET(DE108_26A!$C$104,ROWS($C$104:C116)-1,COLUMNS($C$104:C116)-1),\"\")","v":"   Construction:"}]
[{"$f":"IF(OFFSET(DE108_26A!$C$104,ROWS($C$104:C117)-1,COLUMNS($C$104:C117)-1)<>\"\",OFFSET(DE108_26A!$C$104,ROWS($C$104:C117)-1,COLUMNS($C$104:C117)-1),\"\")","v":"     -  Remove existing NB US 61 pavement from just south of Mark Twain Dr. to the Flint Creek Bridge."}]
[{"$f":"IF(OFFSET(DE108_26A!$C$104,ROWS($C$104:C118)-1,COLUMNS($C$104:C118)-1)<>\"\",OFFSET(DE108_26A!$C$104,ROWS($C$104:C118)-1,COLUMNS($C$104:C118)-1),\"\")","v":"     -  Remove existing US 61 pavement from the Flint Creek Bridge to Upper Flint Rd."}]
[{"$f":"IF(OFFSET(DE108_26A!$C$104,ROWS($C$104:C119)-1,COLUMNS($C$104:C119)-1)<>\"\",OFFSET(DE108_26A!$C$104,ROWS($C$104:C119)-1,COLUMNS($C$104:C119)-1),\"\")","v":"     -  Remove existing US 61 from just north of Tanner Rd. to just north of new 124th Ave."}]
[{"$f":"IF(OFFSET(DE108_26A!$C$104,ROWS($C$104:C120)-1,COLUMNS($C$104:C120)-1)<>\"\",OFFSET(DE108_26A!$C$104,ROWS($C$104:C120)-1,COLUMNS($C$104:C120)-1),\"\")","v":"     -  Remove existing US 61 from just north of 160th St. to just south of 190th St."}]
[{"$f":"IF(OFFSET(DE108_26A!$C$104,ROWS($C$104:C121)-1,COLUMNS($C$104:C121)-1)<>\"\",OFFSET(DE108_26A!$C$104,ROWS($C$104:C121)-1,COLUMNS($C$104:C121)-1),\"\")","v":"     -  Remove existing US 61 from just north of 190th St. to just north of Pleasant Grove Rd."}]
[{"$f":"IF(OFFSET(DE108_26A!$C$104,ROWS($C$104:C122)-1,COLUMNS($C$104:C122)-1)<>\"\",OFFSET(DE108_26A!$C$104,ROWS($C$104:C122)-1,COLUMNS($C$104:C122)-1),\"\")","v":"     -  Remove temporary detour pavement 3 and regrade and pave that portion of SB US 61."}]
[{"$f":"IF(OFFSET(DE108_26A!$C$104,ROWS($C$104:C123)-1,COLUMNS($C$104:C123)-1)<>\"\",OFFSET(DE108_26A!$C$104,ROWS($C$104:C123)-1,COLUMNS($C$104:C123)-1),\"\")","v":"     -  Grade/Pave proposed NB lanes of US 61 from just south of Mark Twain Dr. to the Flint Creek Bridge."}]
[{"$f":"IF(OFFSET(DE108_26A!$C$104,ROWS($C$104:C124)-1,COLUMNS($C$104:C124)-1)<>\"\",OFFSET(DE108_26A!$C$104,ROWS($C$104:C124)-1,COLUMNS($C$104:C124)-1),\"\")","v":"     -  Grade/Pave proposed NB lanes of US 61 from the Flint Creek Bridge to just south of Upper Flint Rd. "}]
[{"$f":"IF(OFFSET(DE108_26A!$C$104,ROWS($C$104:C125)-1,COLUMNS($C$104:C125)-1)<>\"\",OFFSET(DE108_26A!$C$104,ROWS($C$104:C125)-1,COLUMNS($C$104:C125)-1),\"\")","v":"     -  Grade/Pave proposed NB lanes of US 61 from just north of Tanner Rd. to just north of new 124th Ave."}]
[{"$f":"IF(OFFSET(DE108_26A!$C$104,ROWS($C$104:C126)-1,COLUMNS($C$104:C126)-1)<>\"\",OFFSET(DE108_26A!$C$104,ROWS($C$104:C126)-1,COLUMNS($C$104:C126)-1),\"\")","v":"     -  Grade/Pave proposed SB lanes of US 61 from just north of 160th St. to just north of Pleasant Grove Rd."}]
[{"$f":"IF(OFFSET(DE108_26A!$C$104,ROWS($C$104:C127)-1,COLUMNS($C$104:C127)-1)<>\"\",OFFSET(DE108_26A!$C$104,ROWS($C$104:C127)-1,COLUMNS($C$104:C127)-1),\"\")","v":"     -  Grade/Pave the following proposed paved sideroads:"}]
[{"$f":"IF(OFFSET(DE108_26A!$C$104,ROWS($C$104:C128)-1,COLUMNS($C$104:C128)-1)<>\"\",OFFSET(DE108_26A!$C$104,ROWS($C$104:C128)-1,COLUMNS($C$104:C128)-1),\"\")","v":"           1.  Lakeside Dr., Dodgeville Rd., and Pleasant Grove Rd."}]
[{"$f":"IF(OFFSET(DE108_26A!$C$104,ROWS($C$104:C129)-1,COLUMNS($C$104:C129)-1)<>\"\",OFFSET(DE108_26A!$C$104,ROWS($C$104:C129)-1,COLUMNS($C$104:C129)-1),\"\")","v":"     -  Grade/Pave proposed temporary Detour 4."}]
[{"$f":"IF(OFFSET(DE108_26A!$C$104,ROWS($C$104:C130)-1,COLUMNS($C$104:C130)-1)<>\"\",OFFSET(DE108_26A!$C$104,ROWS($C$104:C130)-1,COLUMNS($C$104:C130)-1),\"\")","v":"     -  Grade/Pave proposed bike path."}]
[{"$f":"IF(OFFSET(DE108_26A!$C$104,ROWS($C$104:C131)-1,COLUMNS($C$104:C131)-1)<>\"\",OFFSET(DE108_26A!$C$104,ROWS($C$104:C131)-1,COLUMNS($C$104:C131)-1),\"\")","v":"     -  Grade/Pave proposed re-directed US 61 at Iowa City Rd.--Rt."}]
[{"$f":"IF(OFFSET(DE108_26A!$C$104,ROWS($C$104:C132)-1,COLUMNS($C$104:C132)-1)<>\"\",OFFSET(DE108_26A!$C$104,ROWS($C$104:C132)-1,COLUMNS($C$104:C132)-1),\"\")","v":"     -  Grade/Pave proposed re-directed US 61 at 150th St.--Rt."}]
[{"$f":"IF(OFFSET(DE108_26A!$C$104,ROWS($C$104:C133)-1,COLUMNS($C$104:C133)-1)<>\"\",OFFSET(DE108_26A!$C$104,ROWS($C$104:C133)-1,COLUMNS($C$104:C133)-1),\"\")","v":"     -  Grade/Surface the following proposed gravel roads:"}]
[{"$f":"IF(OFFSET(DE108_26A!$C$104,ROWS($C$104:C134)-1,COLUMNS($C$104:C134)-1)<>\"\",OFFSET(DE108_26A!$C$104,ROWS($C$104:C134)-1,COLUMNS($C$104:C134)-1),\"\")","v":"           1.  Mark Twain Rd., 130th St. right, 124th Ave. right, 160th St. right, 170th St. left, and 190th St. "}]
[{"$f":"IF(OFFSET(DE108_26A!$C$104,ROWS($C$104:C135)-1,COLUMNS($C$104:C135)-1)<>\"\",OFFSET(DE108_26A!$C$104,ROWS($C$104:C135)-1,COLUMNS($C$104:C135)-1),\"\")","v":"     -  Grade/Surface proposed 160th St. right."}]
[{"$f":"IF(OFFSET(DE108_26A!$C$104,ROWS($C$104:C136)-1,COLUMNS($C$104:C136)-1)<>\"\",OFFSET(DE108_26A!$C$104,ROWS($C$104:C136)-1,COLUMNS($C$104:C136)-1),\"\")","v":"     -  Grade/Surface proposed homestead and field entrances as needed."}]
[{"$f":"IF(OFFSET(DE108_26A!$C$104,ROWS($C$104:C137)-1,COLUMNS($C$104:C137)-1)<>\"\",OFFSET(DE108_26A!$C$104,ROWS($C$104:C137)-1,COLUMNS($C$104:C137)-1),\"\")","v":""}]
[{"$f":"IF(OFFSET(DE108_26A!$C$104,ROWS($C$104:C138)-1,COLUMNS($C$104:C138)-1)<>\"\",OFFSET(DE108_26A!$C$104,ROWS($C$104:C138)-1,COLUMNS($C$104:C138)-1),\"\")","v":"Stage 3"}]
[{"$f":"IF(OFFSET(DE108_26A!$C$104,ROWS($C$104:C139)-1,COLUMNS($C$104:C139)-1)<>\"\",OFFSET(DE108_26A!$C$104,ROWS($C$104:C139)-1,COLUMNS($C$104:C139)-1),\"\")","v":"   Traffic:"}]
[{"$f":"IF(OFFSET(DE108_26A!$C$104,ROWS($C$104:C140)-1,COLUMNS($C$104:C140)-1)<>\"\",OFFSET(DE108_26A!$C$104,ROWS($C$104:C140)-1,COLUMNS($C$104:C140)-1),\"\")","v":"     -  Maintain at least one lane of traffic on existing NB and SB US 61 between Sunnyside Dr. and median crossover 1. "}]
[{"$f":"IF(OFFSET(DE108_26A!$C$104,ROWS($C$104:C141)-1,COLUMNS($C$104:C141)-1)<>\"\",OFFSET(DE108_26A!$C$104,ROWS($C$104:C141)-1,COLUMNS($C$104:C141)-1),\"\")","v":"     -  Maintain NB and SB US 61 traffic on the respective NB and SB lanes between median crossover 1 and median crossover 2,"}]
[{"$f":"IF(OFFSET(DE108_26A!$C$104,ROWS($C$104:C142)-1,COLUMNS($C$104:C142)-1)<>\"\",OFFSET(DE108_26A!$C$104,ROWS($C$104:C142)-1,COLUMNS($C$104:C142)-1),\"\")","v":"        except as noted below."}]
[{"$f":"IF(OFFSET(DE108_26A!$C$104,ROWS($C$104:C143)-1,COLUMNS($C$104:C143)-1)<>\"\",OFFSET(DE108_26A!$C$104,ROWS($C$104:C143)-1,COLUMNS($C$104:C143)-1),\"\")","v":"            1.  During removal of median crossover 1 and reconstruction of the median traffic "}]
[{"$f":"IF(OFFSET(DE108_26A!$C$104,ROWS($C$104:C144)-1,COLUMNS($C$104:C144)-1)<>\"\",OFFSET(DE108_26A!$C$104,ROWS($C$104:C144)-1,COLUMNS($C$104:C144)-1),\"\")","v":"                shall be shifted to the outside lanes of proposed NB and SB US 61."}]
[{"$f":"IF(OFFSET(DE108_26A!$C$104,ROWS($C$104:C145)-1,COLUMNS($C$104:C145)-1)<>\"\",OFFSET(DE108_26A!$C$104,ROWS($C$104:C145)-1,COLUMNS($C$104:C145)-1),\"\")","v":"     -  Maintain 2 lane 2 way operations on the SB lanes US 61 between median crossover 2 and temporary detour 4, except as noted below:"}]
[{"$f":"IF(OFFSET(DE108_26A!$C$104,ROWS($C$104:C146)-1,COLUMNS($C$104:C146)-1)<>\"\",OFFSET(DE108_26A!$C$104,ROWS($C$104:C146)-1,COLUMNS($C$104:C146)-1),\"\")","v":"            1.  During removal of temporary detours 1 and 2 traffic shall be shifted to the outside lanes of proposed NB and SB US 61."}]
[{"$f":"IF(OFFSET(DE108_26A!$C$104,ROWS($C$104:C147)-1,COLUMNS($C$104:C147)-1)<>\"\",OFFSET(DE108_26A!$C$104,ROWS($C$104:C147)-1,COLUMNS($C$104:C147)-1),\"\")","v":"     -  Maintain 2 lane 2 way operations on the NB lanes US 61 between temporary detour 4 and the EOP."}]
[{"$f":"IF(OFFSET(DE108_26A!$C$104,ROWS($C$104:C148)-1,COLUMNS($C$104:C148)-1)<>\"\",OFFSET(DE108_26A!$C$104,ROWS($C$104:C148)-1,COLUMNS($C$104:C148)-1),\"\")","v":"     -  Maintain traffic on all side roads, except as noted below."}]
[{"$f":"IF(OFFSET(DE108_26A!$C$104,ROWS($C$104:C149)-1,COLUMNS($C$104:C149)-1)<>\"\",OFFSET(DE108_26A!$C$104,ROWS($C$104:C149)-1,COLUMNS($C$104:C149)-1),\"\")","v":"            1.  Iowa City Rd. right and 150th St. right."}]
[{"$f":"IF(OFFSET(DE108_26A!$C$104,ROWS($C$104:C150)-1,COLUMNS($C$104:C150)-1)<>\"\",OFFSET(DE108_26A!$C$104,ROWS($C$104:C150)-1,COLUMNS($C$104:C150)-1),\"\")","v":"     -  All farmstead and field entrances are to remain open to traffic at all times except during reconstruction."}]
[{"$f":"IF(OFFSET(DE108_26A!$C$104,ROWS($C$104:C151)-1,COLUMNS($C$104:C151)-1)<>\"\",OFFSET(DE108_26A!$C$104,ROWS($C$104:C151)-1,COLUMNS($C$104:C151)-1),\"\")","v":"   Construction:"}]
[{"$f":"IF(OFFSET(DE108_26A!$C$104,ROWS($C$104:C152)-1,COLUMNS($C$104:C152)-1)<>\"\",OFFSET(DE108_26A!$C$104,ROWS($C$104:C152)-1,COLUMNS($C$104:C152)-1),\"\")","v":"     -  Remove temporary detour 2 and grade/pave the small section of NB US 61 just north of 160th St."}]
[{"$f":"IF(OFFSET(DE108_26A!$C$104,ROWS($C$104:C153)-1,COLUMNS($C$104:C153)-1)<>\"\",OFFSET(DE108_26A!$C$104,ROWS($C$104:C153)-1,COLUMNS($C$104:C153)-1),\"\")","v":"     -  Remove median crossover 1 pavement and reconstruct raised median."}]
[{"$f":"IF(OFFSET(DE108_26A!$C$104,ROWS($C$104:C154)-1,COLUMNS($C$104:C154)-1)<>\"\",OFFSET(DE108_26A!$C$104,ROWS($C$104:C154)-1,COLUMNS($C$104:C154)-1),\"\")","v":"     -  Remove temporary detour 1 pavement."}]
[{"$f":"IF(OFFSET(DE108_26A!$C$104,ROWS($C$104:C155)-1,COLUMNS($C$104:C155)-1)<>\"\",OFFSET(DE108_26A!$C$104,ROWS($C$104:C155)-1,COLUMNS($C$104:C155)-1),\"\")","v":"     -  Grade/Surface proposed homestead and field entrances as needed."}]
[{"$f":"IF(OFFSET(DE108_26A!$C$104,ROWS($C$104:C156)-1,COLUMNS($C$104:C156)-1)<>\"\",OFFSET(DE108_26A!$C$104,ROWS($C$104:C156)-1,COLUMNS($C$104:C156)-1),\"\")","v":""}]
[{"$f":"IF(OFFSET(DE108_26A!$C$104,ROWS($C$104:C157)-1,COLUMNS($C$104:C157)-1)<>\"\",OFFSET(DE108_26A!$C$104,ROWS($C$104:C157)-1,COLUMNS($C$104:C157)-1),\"\")","v":"Stage 4."}]
[{"$f":"IF(OFFSET(DE108_26A!$C$104,ROWS($C$104:C158)-1,COLUMNS($C$104:C158)-1)<>\"\",OFFSET(DE108_26A!$C$104,ROWS($C$104:C158)-1,COLUMNS($C$104:C158)-1),\"\")","v":"   Traffic:"}]
[{"$f":"IF(OFFSET(DE108_26A!$C$104,ROWS($C$104:C159)-1,COLUMNS($C$104:C159)-1)<>\"\",OFFSET(DE108_26A!$C$104,ROWS($C$104:C159)-1,COLUMNS($C$104:C159)-1),\"\")","v":"     -  Open proposed US 61 to traffic from Sunnyside Dr. to the EOP, except as noted below."}]
[{"$f":"IF(OFFSET(DE108_26A!$C$104,ROWS($C$104:C160)-1,COLUMNS($C$104:C160)-1)<>\"\",OFFSET(DE108_26A!$C$104,ROWS($C$104:C160)-1,COLUMNS($C$104:C160)-1),\"\")","v":"           i. Close the inside lane of new NB and SB US 61 to traffic when paving left turn lanes."}]
[{"$f":"IF(OFFSET(DE108_26A!$C$104,ROWS($C$104:C161)-1,COLUMNS($C$104:C161)-1)<>\"\",OFFSET(DE108_26A!$C$104,ROWS($C$104:C161)-1,COLUMNS($C$104:C161)-1),\"\")","v":"          ii. Close the outside lane of new NB and SB US 61 to traffic when paving right turn lanes."}]
[{"$f":"IF(OFFSET(DE108_26A!$C$104,ROWS($C$104:C162)-1,COLUMNS($C$104:C162)-1)<>\"\",OFFSET(DE108_26A!$C$104,ROWS($C$104:C162)-1,COLUMNS($C$104:C162)-1),\"\")","v":"     -  Maintain 2 lane 2 way traffic on proposed US 61 between temporary detour 4 and 5, except during left and right lane construction."}]
[{"$f":"IF(OFFSET(DE108_26A!$C$104,ROWS($C$104:C163)-1,COLUMNS($C$104:C163)-1)<>\"\",OFFSET(DE108_26A!$C$104,ROWS($C$104:C163)-1,COLUMNS($C$104:C163)-1),\"\")","v":"     -  Open all side roads to traffic."}]
[{"$f":"IF(OFFSET(DE108_26A!$C$104,ROWS($C$104:C164)-1,COLUMNS($C$104:C164)-1)<>\"\",OFFSET(DE108_26A!$C$104,ROWS($C$104:C164)-1,COLUMNS($C$104:C164)-1),\"\")","v":"     -  Open all farmstead and field entrances to traffic."}]
[{"$f":"IF(OFFSET(DE108_26A!$C$104,ROWS($C$104:C165)-1,COLUMNS($C$104:C165)-1)<>\"\",OFFSET(DE108_26A!$C$104,ROWS($C$104:C165)-1,COLUMNS($C$104:C165)-1),\"\")","v":"   Construction:"}]
[{"$f":"IF(OFFSET(DE108_26A!$C$104,ROWS($C$104:C166)-1,COLUMNS($C$104:C166)-1)<>\"\",OFFSET(DE108_26A!$C$104,ROWS($C$104:C166)-1,COLUMNS($C$104:C166)-1),\"\")","v":"     -  Grade/Pave all NB and SB left and right turn lanes."}]
[{"$f":"IF(OFFSET(DE108_26A!$C$104,ROWS($C$104:C167)-1,COLUMNS($C$104:C167)-1)<>\"\",OFFSET(DE108_26A!$C$104,ROWS($C$104:C167)-1,COLUMNS($C$104:C167)-1),\"\")","v":"     -  Clean up of all debris and place interim erosion control/seeding/fertilizing on entire project."}]
[{"$f":"IF(OFFSET(DE108_26A!$C$104,ROWS($C$104:C168)-1,COLUMNS($C$104:C168)-1)<>\"\",OFFSET(DE108_26A!$C$104,ROWS($C$104:C168)-1,COLUMNS($C$104:C168)-1),\"\")","v":""}]
[{"$f":"IF(OFFSET(DE108_26A!$C$104,ROWS($C$104:C169)-1,COLUMNS($C$104:C169)-1)<>\"\",OFFSET(DE108_26A!$C$104,ROWS($C$104:C169)-1,COLUMNS($C$104:C169)-1),\"\")","v":""}]
[{"$f":"IF(OFFSET(DE108_26A!$C$104,ROWS($C$104:C170)-1,COLUMNS($C$104:C170)-1)<>\"\",OFFSET(DE108_26A!$C$104,ROWS($C$104:C170)-1,COLUMNS($C$104:C170)-1),\"\")","v":"PROJECT (71)  Construct proposed NB bridge over Flint Creek."}]
[{"$f":"IF(OFFSET(DE108_26A!$C$104,ROWS($C$104:C171)-1,COLUMNS($C$104:C171)-1)<>\"\",OFFSET(DE108_26A!$C$104,ROWS($C$104:C171)-1,COLUMNS($C$104:C171)-1),\"\")","v":""}]
[{"$f":"IF(OFFSET(DE108_26A!$C$104,ROWS($C$104:C172)-1,COLUMNS($C$104:C172)-1)<>\"\",OFFSET(DE108_26A!$C$104,ROWS($C$104:C172)-1,COLUMNS($C$104:C172)-1),\"\")","v":"   Traffic:"}]
[{"$f":"IF(OFFSET(DE108_26A!$C$104,ROWS($C$104:C173)-1,COLUMNS($C$104:C173)-1)<>\"\",OFFSET(DE108_26A!$C$104,ROWS($C$104:C173)-1,COLUMNS($C$104:C173)-1),\"\")","v":"     -  Refer to the (69) grade/pave project for all traffic control."}]
[{"$f":"IF(OFFSET(DE108_26A!$C$104,ROWS($C$104:C174)-1,COLUMNS($C$104:C174)-1)<>\"\",OFFSET(DE108_26A!$C$104,ROWS($C$104:C174)-1,COLUMNS($C$104:C174)-1),\"\")","v":"   Construction:"}]
[{"$f":"IF(OFFSET(DE108_26A!$C$104,ROWS($C$104:C175)-1,COLUMNS($C$104:C175)-1)<>\"\",OFFSET(DE108_26A!$C$104,ROWS($C$104:C175)-1,COLUMNS($C$104:C175)-1),\"\")","v":"     -  Construct proposed NB US 61 bridge over Flint Creek."}]
[{"$f":"IF(OFFSET(DE108_26A!$C$104,ROWS($C$104:C176)-1,COLUMNS($C$104:C176)-1)<>\"\",OFFSET(DE108_26A!$C$104,ROWS($C$104:C176)-1,COLUMNS($C$104:C176)-1),\"\")","v":""}]
[{"$f":"IF(OFFSET(DE108_26A!$C$104,ROWS($C$104:C177)-1,COLUMNS($C$104:C177)-1)<>\"\",OFFSET(DE108_26A!$C$104,ROWS($C$104:C177)-1,COLUMNS($C$104:C177)-1),\"\")","v":""}]
[{"$f":"IF(OFFSET(DE108_26A!$C$104,ROWS($C$104:C178)-1,COLUMNS($C$104:C178)-1)<>\"\",OFFSET(DE108_26A!$C$104,ROWS($C$104:C178)-1,COLUMNS($C$104:C178)-1),\"\")","v":""}]
[{"$f":"IF(OFFSET(DE108_26A!$C$104,ROWS($C$104:C179)-1,COLUMNS($C$104:C179)-1)<>\"\",OFFSET(DE108_26A!$C$104,ROWS($C$104:C179)-1,COLUMNS($C$104:C179)-1),\"\")","v":""}]
[{"$f":"IF(OFFSET(DE108_26A!$C$104,ROWS($C$104:C180)-1,COLUMNS($C$104:C180)-1)<>\"\",OFFSET(DE108_26A!$C$104,ROWS($C$104:C180)-1,COLUMNS($C$104:C180)-1),\"\")","v":""}]
[{"$f":"IF(OFFSET(DE108_26A!$C$104,ROWS($C$104:C181)-1,COLUMNS($C$104:C181)-1)<>\"\",OFFSET(DE108_26A!$C$104,ROWS($C$104:C181)-1,COLUMNS($C$104:C181)-1),\"\")","v":""}]
[{"$f":"IF(OFFSET(DE108_26A!$C$104,ROWS($C$104:C182)-1,COLUMNS($C$104:C182)-1)<>\"\",OFFSET(DE108_26A!$C$104,ROWS($C$104:C182)-1,COLUMNS($C$104:C182)-1),\"\")","v":""}]
[{"$f":"IF(OFFSET(DE108_26A!$C$104,ROWS($C$104:C183)-1,COLUMNS($C$104:C183)-1)<>\"\",OFFSET(DE108_26A!$C$104,ROWS($C$104:C183)-1,COLUMNS($C$104:C183)-1),\"\")","v":""}]
[{"$f":"IF(OFFSET(DE108_26A!$C$104,ROWS($C$104:C184)-1,COLUMNS($C$104:C184)-1)<>\"\",OFFSET(DE108_26A!$C$104,ROWS($C$104:C184)-1,COLUMNS($C$104:C184)-1),\"\")","v":""}]
[{"$f":"IF(OFFSET(DE108_26A!$C$104,ROWS($C$104:C185)-1,COLUMNS($C$104:C185)-1)<>\"\",OFFSET(DE108_26A!$C$104,ROWS($C$104:C185)-1,COLUMNS($C$104:C185)-1),\"\")","v":""}]

{"sheet":"111_01","index":7,"n_rows":16,"n_cols":2,"rows_kept":16,"cut":false,"hidden":false,"merged":[[0,0,0,1],[1,0,1,1],[2,0,4,1],[5,0,9,1],[10,0,11,0],[10,1,11,1]]}
["111-01"]
["2012-04-17"]
["COORDINATED OPERATIONS"]
[]
[]
["Other work in progress during the same period of time will include the construction of the projects listed. Coordinate operations with those of other contractors working within the same area. "]
[]
[]
[]
[]
["Project","Type of Work"]
[]
[{"$f":"IF(OFFSET(DE111_01!$C$26,ROWS($C$26:C26)-1,COLUMNS($C$26:C26)-1)<>\"\",OFFSET(DE111_01!$C$26,ROWS($C$26:C26)-1,COLUMNS($C$26:C26)-1),\"\")","v":""},{"$f":"IF(OFFSET(DE111_01!$D$26,ROWS($D$26:D26)-1,COLUMNS($D$26:D26)-1)<>\"\",OFFSET(DE111_01!$D$26,ROWS($D$26:D26)-1,COLUMNS($D$26:D26)-1),\"\")","v":""}]
[{"$f":"IF(OFFSET(DE111_01!$C$26,ROWS($C$26:C27)-1,COLUMNS($C$26:C27)-1)<>\"\",OFFSET(DE111_01!$C$26,ROWS($C$26:C27)-1,COLUMNS($C$26:C27)-1),\"\")","v":"None Provided"},{"$f":"IF(OFFSET(DE111_01!$D$26,ROWS($D$26:D27)-1,COLUMNS($D$26:D27)-1)<>\"\",OFFSET(DE111_01!$D$26,ROWS($D$26:D27)-1,COLUMNS($D$26:D27)-1),\"\")","v":""}]
[{"$f":"IF(OFFSET(DE111_01!$C$26,ROWS($C$26:C28)-1,COLUMNS($C$26:C28)-1)<>\"\",OFFSET(DE111_01!$C$26,ROWS($C$26:C28)-1,COLUMNS($C$26:C28)-1),\"\")","v":""},{"$f":"IF(OFFSET(DE111_01!$D$26,ROWS($D$26:D28)-1,COLUMNS($D$26:D28)-1)<>\"\",OFFSET(DE111_01!$D$26,ROWS($D$26:D28)-1,COLUMNS($D$26:D28)-1),\"\")","v":""}]
[{"$f":"IF(OFFSET(DE111_01!$C$26,ROWS($C$26:C29)-1,COLUMNS($C$26:C29)-1)<>\"\",OFFSET(DE111_01!$C$26,ROWS($C$26:C29)-1,COLUMNS($C$26:C29)-1),\"\")","v":""},{"$f":"IF(OFFSET(DE111_01!$D$26,ROWS($D$26:D29)-1,COLUMNS($D$26:D29)-1)<>\"\",OFFSET(DE111_01!$D$26,ROWS($D$26:D29)-1,COLUMNS($D$26:D29)-1),\"\")","v":""}]

{"sheet":"PrintSheetTemplate","index":8,"n_rows":95,"n_cols":179,"rows_kept":95,"cut":false,"hidden":true,"merged":[[93,171,93,178],[94,1,94,178],[93,101,93,106],[93,107,93,118],[93,119,93,148],[93,149,93,158],[93,159,93,164],[93,165,93,170],[93,1,93,7],[93,8,93,14],[93,15,93,21],[93,22,93,30],[93,31,93,64],[93,65,93,100]]}
[" "]
[]
[]
[]
[]
[]
[]
[]
[]
[]
[]
[]
[]
[]
[]
[]
[]
[]
[]
[]
[]
[]
[]
[]
[]
[]
[]
[]
[]
[]
[]
[]
[]
[]
[]
[]
[]
[]
[]
[]
[]
[]
[]
[]
[]
[]
[]
[]
[]
[]
[]
[]
[]
[]
[]
[]
[]
[]
[]
[]
[]
[]
[]
[]
[]
[]
[]
[]
[]
[]
[]
[]
[]
[]
[]
[]
[]
[]
[]
[]
[]
[]
[]
[]
[]
[]
[]
[]
[]
[]
[]
[]
[null,"","","","","","","","","","","","","","","","","","","","","","","","","","","","","","","","","","","","","","","","","","","","","","","","","","","","","","","","","","","","","","","","","","","","","","","","","","","","","","","","","","","","","","","","","","","","","","","","","","","","","","","","","","","","","","","","","","","","","","","","","","","","","","","","","","","","","","","","","","","","","","","","","","","","","","","",null,"","","","","","","","","","","","","","","","","","","","","","","","","",""]
[null,"FILE NO.",null,null,null,null,null,null,{"$f":"IF(ProjectInformation!$B$11<>\"\",ProjectInformation!$B$11,\"\")","v":""},null,null,null,null,null,null,{"$f":"UPPER(ProjectInformation!$B$8)","v":"ENGLISH"},null,null,null,null,null,null,"DESIGN TEAM",null,null,null,null,null,null,null,null,{"$f":"IF(AND(ProjectInformation!$B$3<>\"\",ProjectInformation!$B$4<>\"\",ProjectInformation!$B$5<>\"\"),ProjectInformation!$B$3&\"\\\"&ProjectInformation!$B$4&\"\\\"&ProjectInformation!$B$5,IF(AND(ProjectInformation!$B$3<>\"\",ProjectInformation!$B$4<>\"\"),ProjectInformation!$B$3&\"\\\"&ProjectInformation!$B$4,IF(ProjectInformation!$B$3<>\"\",ProjectInformation!$B$3,\"\")))","v":""},null,null,null,null,null,null,null,null,null,null,null,null,null,null,null,null,null,null,null,null,null,null,null,null,null,null,null,null,null,null,null,null,null,{"$f":"IF(ProjectInformation!$B$6<>\"\",ProjectInformation!$B$6,\"\")","v":"DES MOINES"},null,null,null,null,null,null,null,null,null,null,null,null,null,null,null,null,null,null,null,null,null,null,null,null,null,null,null,null,null,null,null,null,null,null,null,"COUNTY",null,null,null,null,null,"PROJECT NUMBER",null,null,null,null,null,null,null,null,null,null,null,{"$f":"IF(ProjectInformation!$B$7<>\"\",ProjectInformation!$B$7,\"\")","v":"NHSX-061-2(62)--3H-29"},null,null,null,null,null,null,null,null,null,null,null,null,null,null,null,null,null,null,null,null,null,null,null,null,null,null,null,null,null,"SHEET NUMBER",null,null,null,null,null,null,null,null,null,null,null,null,null,null,null,{"$f":"IF(FP94<>\"\",\"REVISED\",\"\")","v":""},null,null,null,null,null,{"$f":"IF(ProjectInformation!$B$9<>\"\",ProjectInformation!$B$9,\"\")","v":""}]
[""]

{"sheet":"Note1","index":9,"n_rows":1,"n_cols":1,"rows_kept":1,"cut":false,"hidden":true,"merged":[[0,0,2,0]]}
["SEE V SHEETS FOR ADDITIONAL BID ITEMS AND QUANTITIES"]

{"sheet":"BridgeBlock","index":10,"n_rows":4,"n_cols":14,"rows_kept":4,"cut":false,"hidden":true,"merged":[[2,2,2,8],[3,2,3,7],[2,9,2,12],[3,8,3,12]]}
[2]
[null,"","","","","","","","","","","","",""]
[null,null,"Design No.",null,null,null,null,null,null,{"$f":"IF(#REF!<>\"\",#REF!,\"\")","v":{"$error":"#REF!"}}]
[null,null,"File No.",null,null,null,null,null,{"$f":"IF(#REF!<>\"\",#REF!,\"\")","v":{"$error":"#REF!"}}]

{"sheet":"Index","index":11,"n_rows":164,"n_cols":15,"rows_kept":164,"cut":false,"hidden":true,"merged":[]}
["100-0A","1997-10-28","4.5.2","ADAIR",null,"Live English File Path","W:\\Highway\\Design\\RoadDesignDetails\\ExcelTabs\\",null,"Brian R. Smith","bsmith2","Methods","ROADWAY DESIGN",null,"111_01(1)","='111_01'!$A$1:$B$16"]
["100-1A","1997-07-15","06/23/14","ADAMS",null,"Live Metric File Path","W:\\Highway\\Design\\RoadDesignDetails\\ExcelTabs\\MetricTabs\\",null,"Khyle B. Clute","kclute","Methods","ROADWAY DESIGN",null,"108_23A(1)","='108_23A'!$A$1:$A$61"]
["100-1C","2012-04-17","J","ALLAMAKEE",null,"Index File Path","W:\\Highway\\Design\\RoadDesignDetails\\PDFsandWebFiles\\Indexes\\",null,"Thomas M. Hamski","thamski","Methods","ROADWAY DESIGN",null,"108_26A(1)","='108_26A'!$A$1:$A$90"]
["100-1D","2005-10-18",null,"APPANOOSE",null,"Index File Name","TNT_EnglishIndexes.xlsx",null,"Wesley L. Mayberry","wmayber","Methods","ROADWAY DESIGN",null,"108_26A(2)","='108_26A'!$A$91:$A$176"]
["100-4A","2002-10-29",null,"AUDUBON",null,"Last Revision English File Path","W:\\Highway\\Design\\RoadDesignDetails\\Old_Details\\ExcelTabs\\",null,"John M. Narigon","jnarigo","Methods","ROADWAY DESIGN"]
["100-7","2012-10-16",null,"BENTON",null,"Last Revision Metric File Path","W:\\Highway\\Design\\RoadDesignDetails\\Old_Details\\ExcelTabs\\MetricTabs\\",null,"Christopher Poole","cpoole","Methods","ROADWAY DESIGN"]
["100-10","2011-10-18",null,"BLACK HAWK",null,"Seed Path","W:\\Highway\\Design\\CADD\\SpreadSheets\\ExcelTabulations.xltm",null,"Daniel J. Harness","dharnes","Methods","ROADWAY DESIGN"]
["100-11","2008-08-01",null,"BOONE",null,"VersionCheck Path","W:\\Highway\\Design\\CADD\\SpreadSheets\\ExcelTabulations.xlsm",null,"R.D. Skogerboe","dskoger","Road1","ROADWAY DESIGN"]
["100-12","2008-08-01",null,"BREMER",null,"Standard Road Plan Path","W:\\Highway\\Design\\StandardRoadPlans\\PDFsAndWebFiles\\Indexes\\SRP_EnglishIndex.xls",null,"Jason R. Strum","jstrum","Road1","ROADWAY DESIGN"]
["100-12A","2008-08-01",null,"BUCHANAN",null,"Last Revision Standard Road Plan Path","W:\\Highway\\Design\\StandardRoadPlans\\PDFsAndWebFiles\\Old_Indexes\\SRP_EnglishIndex.xls",null,"Robert A. Schoenrock","rschoen","Road1","ROADWAY DESIGN"]
["100-13","2010-04-20",null,"BUENA VISTA",null,"AddIn Path","W:\\Highway\\Design\\CADD\\SpreadSheets\\ET_Testing\\ExcelTabulations.xlam",null,"Stacy M. Ryan","sryan","Road1","ROADWAY DESIGN"]
["100-14","2010-04-20",null,"BUTLER",null,"Old Files Path","W:\\Highway\\Design\\RoadDesignDetails\\Old_Details\\ExcelTabs\\",null,"Nathan A. Thede","nthede","Road1","ROADWAY DESIGN"]
["100-15","2010-04-20",null,"CALHOUN",null,null,null,null,"Yanxiao Jia","yjia","Road2","ROADWAY DESIGN"]
["100-16","2010-10-19",null,"CARROLL",null,null,null,null,"Ryan R. Miller","rmille3","Road2","ROADWAY DESIGN"]
["100-17","2010-04-20",null,"CASS",null,null,null,null,"Jason M. Holst","jholst","Road2","ROADWAY DESIGN"]
["100-18","2010-04-20",null,"CEDAR",null,null,null,null,"Dustin T. Skogerboe","dskoge2","Road2","ROADWAY DESIGN"]
["100-19","2012-10-16",null,"CERRO GORDO",null,null,null,null,"Dung T. Ta","dta","Road2","ROADWAY DESIGN"]
["100-20","2008-08-01",null,"CHEROKEE",null,null,null,null,"Paul W. Flattery","pflatte","Road3","ROADWAY DESIGN"]
["100-21","2008-08-01",null,"CHICKASAW",null,null,null,null,"Kelly C. Bell","kbell","Road3","ROADWAY DESIGN"]
["100-22","2008-08-01",null,"CLARKE",null,null,null,null,"Angela K. Johnson","ajohns1","Road3","ROADWAY DESIGN"]
["100-23","2010-10-19",null,"CLAY",null,null,null,null,"Elijah D. Gansen","egansen","Road3","ROADWAY DESIGN"]
["100-24","2013-04-16",null,"CLAYTON",null,null,null,null,"James R. Schoenrock","jschoen","Consultant","ROADWAY DESIGN"]
["100-26","2008-08-01",null,"CLINTON",null,null,null,null,"Randall E. Schlei","rschlie","Consultant","ROADWAY DESIGN"]
["100-27","2009-10-20",null,"CRAWFORD",null,null,null,null,"Mark D. Mastellar","mmastel","Roadside","ROADWAY DESIGN"]
["100-28","2010-10-19",null,"DALLAS",null,null,null,null,"Robert L. Stanley","rstanle","Soils","GEOTECHNICAL DESIGN"]
["101-4","2002-04-30",null,"DAVIS",null,null,null,null,"Stephen J. Megivern","smegive","Soils","GEOTECHNICAL DESIGN"]
["101-5","2002-04-30",null,"DECATUR",null,null,null,null,"Mark A. Dell","mdell","Soils","GEOTECHNICAL DESIGN"]
["101-6","2002-04-30",null,"DELAWARE",null,null,null,null,"David R. Claman","dclaman","Bridge","HYDRAULIC DESIGN"]
["101-7","2002-04-30",null,"DES MOINES",null,null,null,null,"Zachary K. Abrams","zabrams","TrafficAndSafety","ROADWAY DESIGN"]
["101-8","2013-04-16",null,"DICKINSON"]
["101-13","2004-04-20",null,"DUBUQUE"]
["101-16","2009-10-20",null,"EMMET"]
["101-17","2011-04-19",null,"FAYETTE"]
["101-18","2011-04-19",null,"FLOYD"]
["102-3","2013-04-16",null,"FRANKLIN"]
["102-4","2011-10-18",null,"FREMONT"]
["102-5","2012-10-16",null,"GREENE"]
["102-5A","2008-08-01",null,"GRUNDY"]
["102-6C","2011-10-18",null,"GUTHRIE"]
["102-10","2008-08-01",null,"HAMILTON"]
["102-11","2008-08-01",null,"HANCOCK"]
["102-12","2008-08-01",null,"HARDIN"]
["102-14","2012-04-17",null,"HARRISON"]
["102-15","2008-08-01",null,"HENRY"]
["103-1","2010-10-19",null,"HOWARD"]
["103-3","2012-10-16",null,"HUMBOLDT"]
["103-4","2011-04-19",null,"IDA"]
["103-5","2008-08-01",null,"IOWA"]
["103-6","2011-04-19",null,"JACKSON"]
["103-7","2008-08-01",null,"JASPER"]
["104-3","2012-10-16",null,"JEFFERSON"]
["104-4","2009-10-20",null,"JOHNSON"]
["104-5A","2011-10-18",null,"JONES"]
["104-5B","2011-10-18",null,"KEOKUK"]
["104-5C","2012-04-17",null,"KOSSUTH"]
["104-8","2008-08-01",null,"LEE"]
["104-8A","2010-04-20",null,"LINN"]
["104-9","2012-04-17",null,"LOUSIA"]
["104-10","2008-08-01",null,"LUCAS"]
["104-11","2008-08-01",null,"LYON"]
["104-12","2012-10-16",null,"MADISON"]
["104-13","2013-04-16",null,"MAHASKA"]
["105-1","1994-09-27",null,"MARION"]
["105-3","2005-10-18",null,"MARSHALL"]
["105-4","2011-10-18",null,"MILLS"]
["106-1","2008-08-01",null,"MITCHELL"]
["106-2","2008-08-01",null,"MONONA"]
["106-3","2008-08-01",null,"MONROE"]
["106-4","2013-04-16",null,"MONTGOMERY"]
["106-5","2008-08-01",null,"MUSCATINE"]
["106-7","2008-08-01",null,"O'BRIEN"]
["106-8","2011-04-19",null,"OSCEOLA"]
["107-7","2008-08-01",null,"PAGE"]
["107-22","2013-04-16",null,"PALO ALTO"]
["107-23","2011-10-18",null,"PLYMOUTH"]
["107-24","2008-08-01",null,"POCAHONTAS"]
["107-25","2008-08-01",null,"POLK"]
["107-29","2012-04-17",null,"POTTAWATTAMIE"]
["107-30","2012-04-17",null,"POWESHIEK"]
["107-31","2011-04-19",null,"RINGGOLD"]
["108-1","2008-08-01",null,"SAC"]
["108-2","2008-08-01",null,"SCOTT"]
["108-2A","2008-08-01",null,"SHELBY"]
["108-8A","2010-10-19",null,"SIOUX"]
["108-8B","2011-10-18",null,"STORY"]
["108-8C","2011-10-18",null,"TAMA"]
["108-8D","2010-10-19",null,"TAYLOR"]
["108-9A","2010-04-20",null,"UNION"]
["108-11A","2008-08-01",null,"VAN BUREN"]
["108-12","2008-08-01",null,"WAPELLO"]
["108-13A","2008-08-01",null,"WARREN"]
["108-15","2008-08-01",null,"WASHINGTON"]
["108-16","2010-10-19",null,"WAYNE"]
["108-18","2011-10-18",null,"WEBSTER"]
["108-18B","2012-10-16",null,"WINNEBAGO"]
["108-22","2013-04-16",null,"WINNESHIEK"]
["108-23A","2008-08-01",null,"WOODBURY"]
["108-24","2011-04-19",null,"WORTH"]
["108-26A","2008-08-01",null,"WRIGHT"]
["108-27","2012-10-16"]
["108-28","2008-08-01"]
["108-29","2012-10-16"]
["108-30","2013-04-16"]
["108-33","2013-04-16"]
["108-34","2010-10-19"]
["108-35","2012-04-17"]
["110-1","2013-04-16"]
["110-2","2013-04-16"]
["110-3","2008-08-01"]
["110-4","2008-08-01"]
["110-5","2008-08-01"]
["110-6","2008-08-01"]
["110-7A","2012-04-17"]
["110-7B","2010-10-19"]
["110-8","2008-08-01"]
["110-9","2011-10-18"]
["110-10","2008-08-01"]
["110-11","2008-08-01"]
["110-12A","2013-04-16"]
["110-13","2010-04-20"]
["110-14","2013-04-16"]
["110-15","2013-04-16"]
["110-16","2013-04-16"]
["111-1","2012-04-17"]
["111-2","1989-02-28"]
["111-23","2002-10-29"]
["111-25","2011-10-18"]
["112-3","2013-04-16"]
["112-5","2008-08-01"]
["112-6","2013-04-16"]
["112-7","2010-10-19"]
["112-8","2012-10-16"]
["112-9","2012-04-17"]
["112-10","2011-04-19"]
["113-1","2013-04-16"]
["113-2","2013-04-16"]
["113-3","2011-10-18"]
["113-10","2012-10-16"]
["213-2","2011-10-18"]
["213-3","2011-10-18"]
["231-1","2011-10-18"]
["231-2","2012-10-16"]
["232-3A","2012-10-16"]
["232-3B","2012-10-16"]
["232-3C","2012-10-16"]
["232-3D","2012-10-16"]
["232-4","2011-10-18"]
["232-6","2011-10-18"]
["232-7","2012-10-16"]
["232-9","2011-10-18"]
["232-11","2012-10-16"]
["241-5","2011-10-18"]
["252-1","2012-10-16"]
["253-1","2011-10-18"]
["254-1","2001-10-02"]
["262-3","2012-10-16"]
["262-4","2013-04-16"]
["262-5","2005-10-18"]
["262-6","2005-10-18"]
["263-1","2011-10-18"]
["271-1","2011-10-18"]
["271-2","1985-08-20"]
["271-4","2011-10-18"]
["271-9","1994-09-27"]